{"text_format":"1","workbook":"xlsx","n_sheets":6,"sheets":["تقرير تفصيلى","toutal","يومية المقاولين","فستفال","صن سيشال","فرتونا"],"not_rendered":{"charts":0,"images":0,"macros":1,"external_links":0,"defined_names":7,"comments":0,"pivot_tables":0},"unopened":[],"bounds":{"document_bytes":16777216,"sheet_cells":100000,"rows_first":2000,"rows_last":500,"rows_between":2000,"halvings":0,"cell_chars":16384,"cell_head_chars":4096},"cells_cut":0,"cells_raw":0,"read":"whole","date_system":"1900"}

{"sheet":"تقرير تفصيلى","index":0,"n_rows":9,"n_cols":13,"rows_kept":9,"cut":false,"hidden":false,"merged":[[5,8,5,10]]}
[]
[null,null,null,null,"العدد","الصنف","اسم المقاول","التاريخ","التاريخ"]
[null,null,null,null,null,null,null,{"$f":"\">=\"&E6","v":">=45173"},{"$f":"\"<=\"&F6","v":"<=46004"}]
[]
[null,null,null,null,"من تاريخ","الى تاريخ"]
[null,null,null,null,"2023-09-04","2025-12-13",null,null,"تقرير تفصيلى للمقاولين2025"]
[]
[]
[null,null,null,null,"العدد","التاريخ","الصنف","اسم المقاول","القائم","الفارغ","الصافى","السعر","القيمة"]

{"sheet":"toutal","index":1,"n_rows":468,"n_cols":7,"rows_kept":468,"cut":false,"hidden":false,"merged":[[1,2,1,5]]}
[]
[null,null,"خلاصة شغل الصادر الى مصنع ايجى فروست",null,null,null,{"$f":"TODAY()","v":"2025-02-12"}]
[]
["الاسم ",{"$f":"+A4","v":"الاسم "},"الكمية الصافى","السعر","القيمة","السداد","الباقى "]
["تقرير تفصيلى"]
["يومية المقاولين"]
["فستفال",{"$f":"+A7","v":"فستفال"},{"$f":"SUMIFS('يومية المقاولين'!$N$7:$N$13000,'يومية المقاولين'!$H$7:$H$13000,$A7)","v":158684.6814},{"$f":"+E7/C7","v":41.021436283389114},{"$f":"SUMIFS('يومية المقاولين'!$P$7:$P$17000,'يومية المقاولين'!$H$7:$H$17000,$A7)","v":6509473.5472000018},null,{"$f":"+E7","v":6509473.5472000018}]
["صن سيشال",{"$f":"+A8","v":"صن سيشال"},{"$f":"SUMIFS('يومية المقاولين'!$N$7:$N$13000,'يومية المقاولين'!$H$7:$H$13000,$A8)","v":3606.35},{"$f":"+E8/C8","v":30},{"$f":"SUMIFS('يومية المقاولين'!$P$7:$P$17000,'يومية المقاولين'!$H$7:$H$17000,$A8)","v":108190.5},null,{"$f":"+G7+E8-F8","v":6617664.0472000018}]
["فرتونا","فرتونا",{"$f":"SUMIFS('يومية المقاولين'!$N$7:$N$13000,'يومية المقاولين'!$H$7:$H$13000,$A9)","v":2602.4},36,{"$f":"SUMIFS('يومية المقاولين'!$P$7:$P$17000,'يومية المقاولين'!$H$7:$H$17000,$A9)","v":93686.400000000009},null,{"$f":"+G8+E9-F9","v":6711350.4472000021}]
[null,"سداد ايجى فروست",null,null,null,500000,6211350.4472000021]
[null,"سداد ايجى فروست",null,null,null,750000,5461350.4472000021]
[null,"سداد ايجى فروست",null,null,null,500000,4961350.4472000021]
[null,0]
[null,0]
[null,0]
[null,0]
[null,0]
[null,0]
[null,0]
[null,0]
[null,0]
[null,0]
[null,0]
[null,0]
[null,0]
[null,0]
[null,0]
[null,0]
[null,0]
[null,0]
[null,0]
[null,0]
[null,0]
[null,0]
[null,0]
[null,0]
[null,0]
[null,0]
[null,0]
[null,0]
[null,0]
[null,0]
[null,0]
[null,0]
[null,0]
[null,0]
[null,0]
[null,0]
[null,0]
[null,0]
[null,0]
[null,0]
[null,0]
[null,0]
[null,0]
[null,0]
[null,0]
[null,0]
[null,0]
[null,0]
[null,0]
[null,0]
[null,0]
[null,0]
[null,0]
[null,0]
[null,0]
[null,0]
[null,0]
[null,0]
[null,0]
[null,{"$f":"+A72","v":0}]
[null,0]
[null,0]
[null,0]
[null,0]
[null,0]
[null,0]
[null,0]
[null,0]
[null,0]
[null,0]
[null,0]
[null,0]
[null,0]
[null,0]
[null,0]
[null,0]
[null,0]
[null,0]
[null,0]
[null,0]
[null,0]
[null,0]
[null,0]
[null,0]
[null,0]
[null,0]
[null,0]
[null,0]
[null,0]
[null,0]
[null,0]
[null,0]
[null,0]
[null,0]
[null,0]
[null,0]
[null,0]
[null,0]
[null,0]
[null,0]
[null,0]
[null,0]
[null,0]
[null,0]
[null,0]
[null,0]
[null,0]
[null,0]
[null,0]
[null,0]
[null,0]
[null,0]
[null,0]
[null,0]
[null,0]
[null,0]
[null,0]
[null,0]
[null,0]
[null,0]
[null,0]
[null,0]
[null,0]
[null,{"$f":"+A136","v":0}]
[null,0]
[null,0]
[null,0]
[null,0]
[null,0]
[null,0]
[null,0]
[null,0]
[null,0]
[null,0]
[null,0]
[null,0]
[null,0]
[null,0]
[null,0]
[null,0]
[null,0]
[null,0]
[null,0]
[null,0]
[null,0]
[null,0]
[null,0]
[null,0]
[null,0]
[null,0]
[null,0]
[null,0]
[null,0]
[null,0]
[null,0]
[null,0]
[null,0]
[null,0]
[null,0]
[null,0]
[null,0]
[null,0]
[null,0]
[null,0]
[null,0]
[null,0]
[null,0]
[null,0]
[null,0]
[null,0]
[null,0]
[null,0]
[null,0]
[null,0]
[null,0]
[null,0]
[null,0]
[null,0]
[null,0]
[null,0]
[null,0]
[null,0]
[null,0]
[null,0]
[null,0]
[null,0]
[null,0]
[null,{"$f":"+A200","v":0}]
[null,0]
[null,0]
[null,0]
[null,0]
[null,0]
[null,0]
[null,0]
[null,0]
[null,0]
[null,0]
[null,0]
[null,0]
[null,0]
[null,0]
[null,0]
[null,0]
[null,0]
[null,0]
[null,0]
[null,0]
[null,0]
[null,0]
[null,0]
[null,0]
[null,0]
[null,0]
[null,0]
[null,0]
[null,0]
[null,0]
[null,0]
[null,0]
[null,0]
[null,0]
[null,0]
[null,0]
[null,0]
[null,0]
[null,0]
[null,0]
[null,0]
[null,0]
[null,0]
[null,0]
[null,0]
[null,0]
[null,0]
[null,0]
[null,0]
[null,0]
[null,0]
[null,0]
[null,0]
[null,0]
[null,0]
[null,0]
[null,0]
[null,0]
[null,0]
[null,0]
[null,0]
[null,0]
[null,0]
[null,{"$f":"+A264","v":0}]
[null,0]
[null,0]
[null,0]
[null,0]
[null,0]
[null,0]
[null,0]
[null,0]
[null,0]
[null,0]
[null,0]
[null,0]
[null,0]
[null,0]
[null,0]
[null,0]
[null,0]
[null,0]
[null,0]
[null,0]
[null,0]
[null,0]
[null,0]
[null,0]
[null,0]
[null,0]
[null,0]
[null,0]
[null,0]
[null,0]
[null,0]
[null,0]
[null,0]
[null,0]
[null,0]
[null,0]
[null,0]
[null,0]
[null,0]
[null,0]
[null,0]
[null,0]
[null,0]
[null,0]
[null,0]
[null,0]
[null,0]
[null,0]
[null,0]
[null,0]
[null,0]
[null,0]
[null,0]
[null,0]
[null,0]
[null,0]
[null,0]
[null,0]
[null,0]
[null,0]
[null,0]
[null,0]
[null,0]
[null,{"$f":"+A328","v":0}]
[null,0]
[null,0]
[null,0]
[null,0]
[null,0]
[null,0]
[null,0]
[null,0]
[null,0]
[null,0]
[null,0]
[null,0]
[null,0]
[null,0]
[null,0]
[null,0]
[null,0]
[null,0]
[null,0]
[null,0]
[null,0]
[null,0]
[null,0]
[null,0]
[null,0]
[null,0]
[null,0]
[null,0]
[null,0]
[null,0]
[null,0]
[null,0]
[null,0]
[null,0]
[null,0]
[null,0]
[null,0]
[null,0]
[null,0]
[null,0]
[null,0]
[null,0]
[null,0]
[null,0]
[null,0]
[null,0]
[null,0]
[null,0]
[null,0]
[null,0]
[null,0]
[null,0]
[null,0]
[null,0]
[null,0]
[null,0]
[null,0]
[null,0]
[null,0]
[null,0]
[null,0]
[null,0]
[null,0]
[null,{"$f":"+A392","v":0}]
[null,0]
[null,0]
[null,0]
[null,0]
[null,0]
[null,0]
[null,0]
[null,0]
[null,0]
[null,0]
[null,0]
[null,0]
[null,0]
[null,0]
[null,0]
[null,0]
[null,0]
[null,0]
[null,0]
[null,0]
[null,0]
[null,0]
[null,0]
[null,0]
[null,0]
[null,0]
[null,0]
[null,0]
[null,0]
[null,0]
[null,0]
[null,0]
[null,0]
[null,0]
[null,0]
[null,0]
[null,0]
[null,0]
[null,0]
[null,0]
[null,0]
[null,0]
[null,0]
[null,0]
[null,0]
[null,0]
[null,0]
[null,0]
[null,0]
[null,0]
[null,0]
[null,0]
[null,0]
[null,0]
[null,0]
[null,0]
[null,0]
[null,0]
[null,0]
[null,0]
[null,0]
[null,0]
[null,0]
[null,{"$f":"+A456","v":0}]
[null,0]
[null,0]
[null,0]
[null,0]
[null,0]
[null,0]
[null,0]
[null,0]
[null,0]
[null,0]
[null,0]
[null,0]

{"sheet":"يومية المقاولين","index":2,"n_rows":922,"n_cols":19,"rows_kept":922,"cut":false,"hidden":false,"merged":[]}
[null,null,null,null,null,null,null,null,null,null,null,null,null,{"$f":"SUBTOTAL(9,N7:N17000)","v":164893.43139999997},{"$f":"+P1/N1","v":40.701138852035569},{"$f":"SUBTOTAL(9,P7:P17000)","v":6711350.4472000012},"فستفال",{"$f":"SUMIFS(N7:$N$1300,H7:$H$1300,$Q1)","v":158684.6814},{"$f":"SUMIFS(P7:$P$17000,H7:$H$17000,$Q1)","v":6509473.5472000018}]
[null,null,null,null,null,null,null,null,null,null,null,null,null,null,null,null,"صن سيشال",{"$f":"SUMIFS(N8:$N$1300,H8:$H$1300,$Q2)","v":3606.35},{"$f":"SUMIFS(P8:$P$17000,H8:$H$17000,$Q2)","v":108190.5}]
[null,null,null,null,"بيان يومى تفصيلى  بيومية المفرش والمزرعة 2025",null,null,null,null,null,null,null,null,null,null,null,"فرتونا",{"$f":"SUMIFS(N9:$N$1300,H9:$H$1300,$Q3)","v":2602.4},{"$f":"SUMIFS(P9:$P$17000,H9:$H$17000,$Q3)","v":93686.400000000009}]
[null,null,null,null,null,null,null,"الاجمالى الكلى"]
[]
[null,null,null,null,"التاريخ","العدد","اسم المقاول","الصنف","وزن قائم","الفارغ","صافى قبل الخصم","نسبة الخصم","الخصم","الصافى","السعر","القيمة"]
[null,null,null,null,"2025-01-05","172","شركة ايجى سمارت","فستفال",null,null,null,null,null,1356,45,{"$f":"+N7*O7","v":61020}]
[null,null,null,null,"2025-01-05","308","شركة ايجى سمارت","فستفال",null,null,null,null,null,745,45,{"$f":"+N8*O8","v":33525}]
[null,null,null,null,"2025-01-06","312","شركة ايجى سمارت","فستفال",null,null,null,null,null,1464,45,{"$f":"+N9*O9","v":65880}]
[null,null,null,null,"2025-01-06","330","شركة ايجى سمارت","فستفال",null,null,null,null,null,1358,45,61110]
[null,null,null,null,"2025-01-07","972","شركة ايجى سمارت","فستفال",null,null,null,null,null,4400,45,198000]
[null,null,null,null,"2025-01-08","942","شركة ايجى سمارت","فستفال",null,null,null,null,null,4105,45,184725]
[null,null,null,null,"2025-01-11","728","شركة ايجى سمارت","فستفال",null,null,null,null,null,3324,45,149580]
[null,null,null,null,"2025-01-12","252","شركة ايجى سمارت","فستفال",null,null,null,null,null,1158,45,52110]
[null,null,null,null,"2025-01-12","918","شركة ايجى سمارت","فستفال",null,null,null,null,null,3888,45,174960]
[null,null,null,null,"2025-01-13","308","شركة ايجى سمارت","فستفال",null,null,null,null,null,1279,45,57555]
[null,null,null,null,"2025-01-13","972","شركة ايجى سمارت","فستفال",null,null,null,null,null,3962,45,178290]
[null,null,null,null,"2025-01-14","270","شركة ايجى سمارت","فستفال",null,null,null,null,null,1219,45,54855]
[null,null,null,null,"2025-01-14","972","شركة ايجى سمارت","فستفال",null,null,null,null,null,4224,45,190080]
[null,null,null,null,"2025-01-15","158","شركة ايجى سمارت","فستفال",null,null,null,null,null,773,45,34785]
[null,null,null,null,"2025-01-15","918","شركة ايجى سمارت","فستفال",null,null,null,null,null,3756,45,169020]
[null,null,null,null,"2025-01-18","224","شركة ايجى سمارت","فستفال",null,null,null,null,null,983,45,44235]
[null,null,null,null,"2025-01-18","918","شركة ايجى سمارت","فستفال",null,null,null,null,null,3955,45,177975]
[null,null,null,null,"2025-01-19","352","شركة ايجى سمارت","فستفال",null,null,null,null,null,1597,45,71865]
[null,null,null,null,"2025-01-19","972","شركة ايجى سمارت","فستفال",null,null,null,null,null,4371,45,196695]
[null,null,null,null,"2025-01-20","242","شركة ايجى سمارت","فستفال",null,null,null,null,null,412.6,45,18567]
[null,null,null,null,"2025-01-20","972","شركة ايجى سمارت","فستفال",null,null,null,null,null,1044.5999999999999,45,47006.999999999993]
[null,null,null,null,"2025-01-21","396","شركة ايجى سمارت","فستفال",null,null,null,null,null,1705.6,45,76752]
[null,null,null,null,"2025-01-21","972","شركة ايجى سمارت","فستفال",null,null,null,null,null,4056.8,45,182556]
[null,null,null,null,"2025-01-22","300","شركة ايجى سمارت","فستفال",null,null,null,null,null,4086.2,45,183879]
[null,null,null,null,"2025-01-22","100","شركة ايجى سمارت","فستفال",null,null,null,null,null,965.3,45,43438.5]
[null,null,null,null,"2025-01-22","972","شركة ايجى سمارت","صن سيشال",null,null,null,null,null,707.85,30,21235.5]
[null,null,null,null,"2025-01-25","810","شركة ايجى سمارت","فستفال",null,null,null,null,null,3354.5,41,137534.5]
[null,null,null,null,"2025-01-25","756","شركة ايجى سمارت","فستفال",null,null,null,null,null,3225,41,132225]
[null,null,null,null,"2025-01-26","396","شركة ايجى سمارت","فستفال",null,null,null,null,null,1554,41,63714]
[null,null,null,null,"2025-01-26","1080","شركة ايجى سمارت","فستفال",null,null,null,null,null,4398,41,180318]
[null,null,null,null,"2025-01-27","315","شركة ايجى سمارت","فستفال",null,null,null,null,null,1296.5,41,53156.5]
[null,null,null,null,"2025-01-27","918","شركة ايجى سمارت","فستفال",null,null,null,null,null,3770.4,41,154586.4]
[null,null,null,null,"2025-01-28","218","شركة ايجى سمارت","فستفال",null,null,null,null,null,806,41,33046]
[null,null,null,null,"2025-01-28","918","شركة ايجى سمارت","فستفال",null,null,null,null,null,3732,41,153012]
[null,null,null,null,"2025-01-29","150","شركة ايجى سمارت","فستفال",null,null,null,null,null,598.5,41,24538.5]
[null,null,null,null,"2025-01-29","918","شركة ايجى سمارت","فستفال",null,null,null,null,null,3604,41,147764]
[null,null,null,null,"2025-02-01","918","شركة ايجى سمارت","فستفال",null,null,null,null,null,3731.5,39,145528.5]
[null,null,null,null,"2025-02-01","810","شركة ايجى سمارت","فستفال",null,null,null,null,null,3256.5,39,127003.5]
[null,null,null,null,"2025-02-02","810","شركة ايجى سمارت","فستفال",null,null,null,null,null,3384,39,131976]
[null,null,null,null,"2025-02-02","756","شركة ايجى سمارت","فستفال",null,null,null,null,null,3258,39,127062]
[null,null,null,null,"2025-02-03","182","شركة ايجى سمارت","فستفال",null,null,null,null,null,511.6,39,19952.400000000001]
[null,null,null,null,"2025-02-03","864","شركة ايجى سمارت","فستفال",null,null,null,null,null,3685,39,143715]
[null,null,null,null,"2025-02-03","790","شركة ايجى سمارت","فستفال",null,null,null,null,null,3415,39,133185]
[null,null,null,null,"2025-02-04","232","شركة ايجى سمارت","فستفال",null,null,null,null,null,1113.0999999999999,39,43410.899999999994]
[null,null,null,null,"2025-02-04","810","شركة ايجى سمارت","فستفال",null,null,null,null,null,3448,39,134472]
[null,null,null,null,"2025-02-04","564","شركة ايجى سمارت","فستفال",null,null,null,null,null,2421.6999999999998,39,94446.299999999988]
[null,null,null,null,"2025-02-04","280","شركة ايجى سمارت","صن سيشال",null,null,null,null,null,1203.5,30,36105]
[null,null,null,null,"2025-02-05","267","شركة ايجى سمارت","صن سيشال",null,null,null,null,null,1288,30,38640]
[null,null,null,null,"2025-02-05","918","شركة ايجى سمارت","فستفال",null,null,null,null,null,3437.4,39,134058.6]
[null,null,null,null,"2025-02-05","918","شركة ايجى سمارت","فستفال",null,null,null,null,null,3653,39,142467]
[null,null,null,null,"2025-02-06","100","شركة ايجى سمارت","صن سيشال",null,null,null,null,null,407,30,12210]
[null,null,null,null,"2025-02-06","252","شركة ايجى سمارت","فستفال",null,null,null,null,null,1026.6500000000001,39,40039.350000000006]
[null,null,null,null,"2025-02-06","972","شركة ايجى سمارت","فستفال",null,null,null,null,null,4083.3,39,159248.70000000001]
[null,null,null,null,"2025-02-08",122,"شركة ايجى سمارت","فستفال",610,85.399999999999991,524.6,0.01,5.2460000000000004,519.35,38,19735.3]
[null,null,null,null,"2025-02-08",294,"شركة ايجى سمارت","فرتونا",670,205.79999999999998,464.20000000000005,0.04,18.568000000000001,445.6,36,16041.6]
[null,null,null,null,"2025-02-08",735,"شركة ايجى سمارت","فستفال",3770,514.5,3255.5,0.01,32.555,3223,38,122474]
[null,null,null,null,"2025-02-08",495,"شركة ايجى سمارت","فرتونا",2570,346.5,2223.5,0.03,66.704999999999998,2156.8000000000002,36,77644.800000000003]
[null,null,null,null,"2025-02-08",531,"شركة ايجى سمارت","فستفال",2630,371.7,2258.3000000000002,0.01,22.583000000000002,2235.7199999999998,38,84957.359999999986]
[null,null,null,null,"2025-02-09",220,"شركة ايجى سمارت","فستفال",1180,154,1026,0.03,30.779999999999998,995.22,38,37818.36]
[null,null,null,null,"2025-02-09",975,"شركة ايجى سمارت","فستفال",4800,682.5,4117.5,0.02,82.350000000000009,4035.15,38,153335.70000000001]
[null,null,null,null,"2025-02-09",972,"شركة ايجى سمارت","فستفال",5010,680.4,4329.6000000000004,0.02,86.592000000000013,4243.0080000000007,38,161234.30400000003]
[null,null,null,null,"2025-02-10",196,"ايجى فروست","فستفال",1358,137.19999999999999,1220.8,0.02,24.416,1196.384,38,45462.592000000004]
[null,null,null,null,"2025-02-10",342,"ايجى فروست","فستفال",2172,319.77000000000004,1852.23,0.02,37.044600000000003,1815.1854000000001,38,68977.045200000008]
[null,null,null,null,"2025-02-10",220,"ايجى فروست","فستفال",1740,154,1586,0.03,47.58,1538.42,38,58459.960000000006]
[null,null,null,null,"2025-02-10",1026,"ايجى فروست","فستفال",5030,718.19999999999993,4311.8,0.01,43.118000000000002,4268.6819999999998,38,162209.916]
[null,null,null,null,"2025-02-11",972,"ايجى فروست","فستفال",4600,680.4,3919.6,0.01,39.195999999999998,3880.404,30,116412.12]
[null,null,null,null,"2025-02-11",972,"ايجى فروست","فستفال",4540,680.4,3859.6,0.02,77.191999999999993,3782.4079999999999,30,113472.23999999999]
[null,null,null,null,null,null,{"$f":"+G73","v":"ايجى فروست"},null,null,null,null,null,null,null,null,{"$f":"+N74*O74","v":0}]
[null,null,null,null,null,null,"ايجى فروست",null,null,null,null,null,null,null,null,0]
[null,null,null,null,null,null,"ايجى فروست",null,null,null,null,null,null,null,null,0]
[null,null,null,null,null,null,"ايجى فروست",null,null,null,null,null,null,null,null,0]
[null,null,null,null,null,null,"ايجى فروست",null,null,null,null,null,null,null,null,0]
[null,null,null,null,null,null,"ايجى فروست",null,null,null,null,null,null,null,null,0]
[null,null,null,null,null,null,"ايجى فروست",null,null,null,null,null,null,null,null,0]
[null,null,null,null,null,null,"ايجى فروست",null,null,null,null,null,null,null,null,0]
[null,null,null,null,null,null,"ايجى فروست",null,null,null,null,null,null,null,null,0]
[null,null,null,null,null,null,"ايجى فروست",null,null,null,null,null,null,null,null,0]
[null,null,null,null,null,null,"ايجى فروست",null,null,null,null,null,null,null,null,0]
[null,null,null,null,null,null,"ايجى فروست",null,null,null,null,null,null,null,null,0]
[null,null,null,null,null,null,"ايجى فروست",null,null,null,null,null,null,null,null,0]
[null,null,null,null,null,null,"ايجى فروست",null,null,null,null,null,null,null,null,0]
[null,null,null,null,null,null,"ايجى فروست",null,null,null,null,null,null,null,null,0]
[null,null,null,null,null,null,"ايجى فروست",null,null,null,null,null,null,null,null,0]
[null,null,null,null,null,null,"ايجى فروست",null,null,null,null,null,null,null,null,0]
[null,null,null,null,null,null,"ايجى فروست",null,null,null,null,null,null,null,null,0]
[null,null,null,null,null,null,"ايجى فروست",null,null,null,null,null,null,null,null,0]
[null,null,null,null,null,null,"ايجى فروست",null,null,null,null,null,null,null,null,0]
[null,null,null,null,null,null,"ايجى فروست",null,null,null,null,null,null,null,null,0]
[null,null,null,null,null,null,"ايجى فروست",null,null,null,null,null,null,null,null,0]
[null,null,null,null,null,null,"ايجى فروست",null,null,null,null,null,null,null,null,0]
[null,null,null,null,null,null,"ايجى فروست",null,null,null,null,null,null,null,null,0]
[null,null,null,null,null,null,"ايجى فروست",null,null,null,null,null,null,null,null,0]
[null,null,null,null,null,null,"ايجى فروست",null,null,null,null,null,null,null,null,0]
[null,null,null,null,null,null,"ايجى فروست",null,null,null,null,null,null,null,null,0]
[null,null,null,null,null,null,"ايجى فروست",null,null,null,null,null,null,null,null,0]
[null,null,null,null,null,null,"ايجى فروست",null,null,null,null,null,null,null,null,0]
[null,null,null,null,null,null,"ايجى فروست",null,null,null,null,null,null,null,null,0]
[null,null,null,null,null,null,"ايجى فروست",null,null,null,null,null,null,null,null,0]
[null,null,null,null,null,null,"ايجى فروست",null,null,null,null,null,null,null,null,0]
[null,null,null,null,null,null,"ايجى فروست",null,null,null,null,null,null,null,null,0]
[null,null,null,null,null,null,"ايجى فروست",null,null,null,null,null,null,null,null,0]
[null,null,null,null,null,null,"ايجى فروست",null,null,null,null,null,null,null,null,0]
[null,null,null,null,null,null,"ايجى فروست",null,null,null,null,null,null,null,null,0]
[null,null,null,null,null,null,"ايجى فروست",null,null,null,null,null,null,null,null,0]
[null,null,null,null,null,null,"ايجى فروست",null,null,null,null,null,null,null,null,0]
[null,null,null,null,null,null,"ايجى فروست",null,null,null,null,null,null,null,null,0]
[null,null,null,null,null,null,"ايجى فروست",null,null,null,null,null,null,null,null,0]
[null,null,null,null,null,null,"ايجى فروست",null,null,null,null,null,null,null,null,0]
[null,null,null,null,null,null,"ايجى فروست",null,null,null,null,null,null,null,null,0]
[null,null,null,null,null,null,"ايجى فروست",null,null,null,null,null,null,null,null,0]
[null,null,null,null,null,null,"ايجى فروست",null,null,null,null,null,null,null,null,0]
[null,null,null,null,null,null,"ايجى فروست",null,null,null,null,null,null,null,null,0]
[null,null,null,null,null,null,"ايجى فروست",null,null,null,null,null,null,null,null,0]
[null,null,null,null,null,null,"ايجى فروست",null,null,null,null,null,null,null,null,0]
[null,null,null,null,null,null,"ايجى فروست",null,null,null,null,null,null,null,null,0]
[null,null,null,null,null,null,"ايجى فروست",null,null,null,null,null,null,null,null,0]
[null,null,null,null,null,null,"ايجى فروست",null,null,null,null,null,null,null,null,0]
[null,null,null,null,null,null,"ايجى فروست",null,null,null,null,null,null,null,null,0]
[null,null,null,null,null,null,"ايجى فروست",null,null,null,null,null,null,null,null,0]
[null,null,null,null,null,null,"ايجى فروست",null,null,null,null,null,null,null,null,0]
[null,null,null,null,null,null,"ايجى فروست",null,null,null,null,null,null,null,null,0]
[null,null,null,null,null,null,"ايجى فروست",null,null,null,null,null,null,null,null,0]
[null,null,null,null,null,null,"ايجى فروست",null,null,null,null,null,null,null,null,0]
[null,null,null,null,null,null,"ايجى فروست",null,null,null,null,null,null,null,null,0]
[null,null,null,null,null,null,"ايجى فروست",null,null,null,null,null,null,null,null,0]
[null,null,null,null,null,null,"ايجى فروست",null,null,null,null,null,null,null,null,0]
[null,null,null,null,null,null,"ايجى فروست",null,null,null,null,null,null,null,null,0]
[null,null,null,null,null,null,"ايجى فروست",null,null,null,null,null,null,null,null,0]
[null,null,null,null,null,null,"ايجى فروست",null,null,null,null,null,null,null,null,0]
[null,null,null,null,null,null,"ايجى فروست",null,null,null,null,null,null,null,null,0]
[null,null,null,null,null,null,{"$f":"+G136","v":"ايجى فروست"},null,null,null,null,null,null,null,null,{"$f":"+N137*O137","v":0}]
[null,null,null,null,null,null,"ايجى فروست",null,null,null,null,null,null,null,null,0]
[null,null,null,null,null,null,"ايجى فروست",null,null,null,null,null,null,null,null,0]
[null,null,null,null,null,null,"ايجى فروست",null,null,null,null,null,null,null,null,0]
[null,null,null,null,null,null,"ايجى فروست",null,null,null,null,null,null,null,null,0]
[null,null,null,null,null,null,"ايجى فروست",null,null,null,null,null,null,null,null,0]
[null,null,null,null,null,null,"ايجى فروست",null,null,null,null,null,null,null,null,0]
[null,null,null,null,null,null,"ايجى فروست",null,null,null,null,null,null,null,null,0]
[null,null,null,null,null,null,"ايجى فروست",null,null,null,null,null,null,null,null,0]
[null,null,null,null,null,null,"ايجى فروست",null,null,null,null,null,null,null,null,0]
[null,null,null,null,null,null,"ايجى فروست",null,null,null,null,null,null,null,null,0]
[null,null,null,null,null,null,"ايجى فروست",null,null,null,null,null,null,null,null,0]
[null,null,null,null,null,null,"ايجى فروست",null,null,null,null,null,null,null,null,0]
[null,null,null,null,null,null,"ايجى فروست",null,null,null,null,null,null,null,null,0]
[null,null,null,null,null,null,"ايجى فروست",null,null,null,null,null,null,null,null,0]
[null,null,null,null,null,null,"ايجى فروست",null,null,null,null,null,null,null,null,0]
[null,null,null,null,null,null,"ايجى فروست",null,null,null,null,null,null,null,null,0]
[null,null,null,null,null,null,"ايجى فروست",null,null,null,null,null,null,null,null,0]
[null,null,null,null,null,null,"ايجى فروست",null,null,null,null,null,null,null,null,0]
[null,null,null,null,null,null,"ايجى فروست",null,null,null,null,null,null,null,null,0]
[null,null,null,null,null,null,"ايجى فروست",null,null,null,null,null,null,null,null,0]
[null,null,null,null,null,null,"ايجى فروست",null,null,null,null,null,null,null,null,0]
[null,null,null,null,null,null,"ايجى فروست",null,null,null,null,null,null,null,null,0]
[null,null,null,null,null,null,"ايجى فروست",null,null,null,null,null,null,null,null,0]
[null,null,null,null,null,null,"ايجى فروست",null,null,null,null,null,null,null,null,0]
[null,null,null,null,null,null,"ايجى فروست",null,null,null,null,null,null,null,null,0]
[null,null,null,null,null,null,"ايجى فروست",null,null,null,null,null,null,null,null,0]
[null,null,null,null,null,null,"ايجى فروست",null,null,null,null,null,null,null,null,0]
[null,null,null,null,null,null,"ايجى فروست",null,null,null,null,null,null,null,null,0]
[null,null,null,null,null,null,"ايجى فروست",null,null,null,null,null,null,null,null,0]
[null,null,null,null,null,null,"ايجى فروست",null,null,null,null,null,null,null,null,0]
[null,null,null,null,null,null,"ايجى فروست",null,null,null,null,null,null,null,null,0]
[null,null,null,null,null,null,"ايجى فروست",null,null,null,null,null,null,null,null,0]
[null,null,null,null,null,null,"ايجى فروست",null,null,null,null,null,null,null,null,0]
[null,null,null,null,null,null,"ايجى فروست",null,null,null,null,null,null,null,null,0]
[null,null,null,null,null,null,"ايجى فروست",null,null,null,null,null,null,null,null,0]
[null,null,null,null,null,null,"ايجى فروست",null,null,null,null,null,null,null,null,0]
[null,null,null,null,null,null,"ايجى فروست",null,null,null,null,null,null,null,null,0]
[null,null,null,null,null,null,"ايجى فروست",null,null,null,null,null,null,null,null,0]
[null,null,null,null,null,null,"ايجى فروست",null,null,null,null,null,null,null,null,0]
[null,null,null,null,null,null,"ايجى فروست",null,null,null,null,null,null,null,null,0]
[null,null,null,null,null,null,"ايجى فروست",null,null,null,null,null,null,null,null,0]
[null,null,null,null,null,null,"ايجى فروست",null,null,null,null,null,null,null,null,0]
[null,null,null,null,null,null,"ايجى فروست",null,null,null,null,null,null,null,null,0]
[null,null,null,null,null,null,"ايجى فروست",null,null,null,null,null,null,null,null,0]
[null,null,null,null,null,null,"ايجى فروست",null,null,null,null,null,null,null,null,0]
[null,null,null,null,null,null,"ايجى فروست",null,null,null,null,null,null,null,null,0]
[null,null,null,null,null,null,"ايجى فروست",null,null,null,null,null,null,null,null,0]
[null,null,null,null,null,null,"ايجى فروست",null,null,null,null,null,null,null,null,0]
[null,null,null,null,null,null,"ايجى فروست",null,null,null,null,null,null,null,null,0]
[null,null,null,null,null,null,"ايجى فروست",null,null,null,null,null,null,null,null,0]
[null,null,null,null,null,null,"ايجى فروست",null,null,null,null,null,null,null,null,0]
[null,null,null,null,null,null,"ايجى فروست",null,null,null,null,null,null,null,null,0]
[null,null,null,null,null,null,"ايجى فروست",null,null,null,null,null,null,null,null,0]
[null,null,null,null,null,null,"ايجى فروست",null,null,null,null,null,null,null,null,0]
[null,null,null,null,null,null,"ايجى فروست",null,null,null,null,null,null,null,null,0]
[null,null,null,null,null,null,"ايجى فروست",null,null,null,null,null,null,null,null,0]
[null,null,null,null,null,null,"ايجى فروست",null,null,null,null,null,null,null,null,0]
[null,null,null,null,null,null,"ايجى فروست",null,null,null,null,null,null,null,null,0]
[null,null,null,null,null,null,"ايجى فروست",null,null,null,null,null,null,null,null,0]
[null,null,null,null,null,null,"ايجى فروست",null,null,null,null,null,null,null,null,0]
[null,null,null,null,null,null,"ايجى فروست",null,null,null,null,null,null,null,null,0]
[null,null,null,null,null,null,"ايجى فروست",null,null,null,null,null,null,null,null,0]
[null,null,null,null,null,null,"ايجى فروست",null,null,null,null,null,null,null,null,0]
[null,null,null,null,null,null,{"$f":"+G200","v":"ايجى فروست"},null,null,null,null,null,null,null,null,{"$f":"+N201*O201","v":0}]
[null,null,null,null,null,null,"ايجى فروست",null,null,null,null,null,null,null,null,0]
[null,null,null,null,null,null,"ايجى فروست",null,null,null,null,null,null,null,null,0]
[null,null,null,null,null,null,"ايجى فروست",null,null,null,null,null,null,null,null,0]
[null,null,null,null,null,null,"ايجى فروست",null,null,null,null,null,null,null,null,0]
[null,null,null,null,null,null,"ايجى فروست",null,null,null,null,null,null,null,null,0]
[null,null,null,null,null,null,"ايجى فروست",null,null,null,null,null,null,null,null,0]
[null,null,null,null,null,null,"ايجى فروست",null,null,null,null,null,null,null,null,0]
[null,null,null,null,null,null,"ايجى فروست",null,null,null,null,null,null,null,null,0]
[null,null,null,null,null,null,"ايجى فروست",null,null,null,null,null,null,null,null,0]
[null,null,null,null,null,null,"ايجى فروست",null,null,null,null,null,null,null,null,0]
[null,null,null,null,null,null,"ايجى فروست",null,null,null,null,null,null,null,null,0]
[null,null,null,null,null,null,"ايجى فروست",null,null,null,null,null,null,null,null,0]
[null,null,null,null,null,null,"ايجى فروست",null,null,null,null,null,null,null,null,0]
[null,null,null,null,null,null,"ايجى فروست",null,null,null,null,null,null,null,null,0]
[null,null,null,null,null,null,"ايجى فروست",null,null,null,null,null,null,null,null,0]
[null,null,null,null,null,null,"ايجى فروست",null,null,null,null,null,null,null,null,0]
[null,null,null,null,null,null,"ايجى فروست",null,null,null,null,null,null,null,null,0]
[null,null,null,null,null,null,"ايجى فروست",null,null,null,null,null,null,null,null,0]
[null,null,null,null,null,null,"ايجى فروست",null,null,null,null,null,null,null,null,0]
[null,null,null,null,null,null,"ايجى فروست",null,null,null,null,null,null,null,null,0]
[null,null,null,null,null,null,"ايجى فروست",null,null,null,null,null,null,null,null,0]
[null,null,null,null,null,null,"ايجى فروست",null,null,null,null,null,null,null,null,0]
[null,null,null,null,null,null,"ايجى فروست",null,null,null,null,null,null,null,null,0]
[null,null,null,null,null,null,"ايجى فروست",null,null,null,null,null,null,null,null,0]
[null,null,null,null,null,null,"ايجى فروست",null,null,null,null,null,null,null,null,0]
[null,null,null,null,null,null,"ايجى فروست",null,null,null,null,null,null,null,null,0]
[null,null,null,null,null,null,"ايجى فروست",null,null,null,null,null,null,null,null,0]
[null,null,null,null,null,null,"ايجى فروست",null,null,null,null,null,null,null,null,0]
[null,null,null,null,null,null,"ايجى فروست",null,null,null,null,null,null,null,null,0]
[null,null,null,null,null,null,"ايجى فروست",null,null,null,null,null,null,null,null,0]
[null,null,null,null,null,null,"ايجى فروست",null,null,null,null,null,null,null,null,0]
[null,null,null,null,null,null,"ايجى فروست",null,null,null,null,null,null,null,null,0]
[null,null,null,null,null,null,"ايجى فروست",null,null,null,null,null,null,null,null,0]
[null,null,null,null,null,null,"ايجى فروست",null,null,null,null,null,null,null,null,0]
[null,null,null,null,null,null,"ايجى فروست",null,null,null,null,null,null,null,null,0]
[null,null,null,null,null,null,"ايجى فروست",null,null,null,null,null,null,null,null,0]
[null,null,null,null,null,null,"ايجى فروست",null,null,null,null,null,null,null,null,0]
[null,null,null,null,null,null,"ايجى فروست",null,null,null,null,null,null,null,null,0]
[null,null,null,null,null,null,"ايجى فروست",null,null,null,null,null,null,null,null,0]
[null,null,null,null,null,null,"ايجى فروست",null,null,null,null,null,null,null,null,0]
[null,null,null,null,null,null,"ايجى فروست",null,null,null,null,null,null,null,null,0]
[null,null,null,null,null,null,"ايجى فروست",null,null,null,null,null,null,null,null,0]
[null,null,null,null,null,null,"ايجى فروست",null,null,null,null,null,null,null,null,0]
[null,null,null,null,null,null,"ايجى فروست",null,null,null,null,null,null,null,null,0]
[null,null,null,null,null,null,"ايجى فروست",null,null,null,null,null,null,null,null,0]
[null,null,null,null,null,null,"ايجى فروست",null,null,null,null,null,null,null,null,0]
[null,null,null,null,null,null,"ايجى فروست",null,null,null,null,null,null,null,null,0]
[null,null,null,null,null,null,"ايجى فروست",null,null,null,null,null,null,null,null,0]
[null,null,null,null,null,null,"ايجى فروست",null,null,null,null,null,null,null,null,0]
[null,null,null,null,null,null,"ايجى فروست",null,null,null,null,null,null,null,null,0]
[null,null,null,null,null,null,"ايجى فروست",null,null,null,null,null,null,null,null,0]
[null,null,null,null,null,null,"ايجى فروست",null,null,null,null,null,null,null,null,0]
[null,null,null,null,null,null,"ايجى فروست",null,null,null,null,null,null,null,null,0]
[null,null,null,null,null,null,"ايجى فروست",null,null,null,null,null,null,null,null,0]
[null,null,null,null,null,null,"ايجى فروست",null,null,null,null,null,null,null,null,0]
[null,null,null,null,null,null,"ايجى فروست",null,null,null,null,null,null,null,null,0]
[null,null,null,null,null,null,"ايجى فروست",null,null,null,null,null,null,null,null,0]
[null,null,null,null,null,null,"ايجى فروست",null,null,null,null,null,null,null,null,0]
[null,null,null,null,null,null,"ايجى فروست",null,null,null,null,null,null,null,null,0]
[null,null,null,null,null,null,"ايجى فروست",null,null,null,null,null,null,null,null,0]
[null,null,null,null,null,null,"ايجى فروست",null,null,null,null,null,null,null,null,0]
[null,null,null,null,null,null,"ايجى فروست",null,null,null,null,null,null,null,null,0]
[null,null,null,null,null,null,"ايجى فروست",null,null,null,null,null,null,null,null,0]
[null,null,null,null,null,null,{"$f":"+G264","v":"ايجى فروست"},null,null,null,null,null,null,null,null,{"$f":"+N265*O265","v":0}]
[null,null,null,null,null,null,"ايجى فروست",null,null,null,null,null,null,null,null,0]
[null,null,null,null,null,null,"ايجى فروست",null,null,null,null,null,null,null,null,0]
[null,null,null,null,null,null,"ايجى فروست",null,null,null,null,null,null,null,null,0]
[null,null,null,null,null,null,"ايجى فروست",null,null,null,null,null,null,null,null,0]
[null,null,null,null,null,null,"ايجى فروست",null,null,null,null,null,null,null,null,0]
[null,null,null,null,null,null,"ايجى فروست",null,null,null,null,null,null,null,null,0]
[null,null,null,null,null,null,"ايجى فروست",null,null,null,null,null,null,null,null,0]
[null,null,null,null,null,null,"ايجى فروست",null,null,null,null,null,null,null,null,0]
[null,null,null,null,null,null,"ايجى فروست",null,null,null,null,null,null,null,null,0]
[null,null,null,null,null,null,"ايجى فروست",null,null,null,null,null,null,null,null,0]
[null,null,null,null,null,null,"ايجى فروست",null,null,null,null,null,null,null,null,0]
[null,null,null,null,null,null,"ايجى فروست",null,null,null,null,null,null,null,null,0]
[null,null,null,null,null,null,"ايجى فروست",null,null,null,null,null,null,null,null,0]
[null,null,null,null,null,null,"ايجى فروست",null,null,null,null,null,null,null,null,0]
[null,null,null,null,null,null,"ايجى فروست",null,null,null,null,null,null,null,null,0]
[null,null,null,null,null,null,"ايجى فروست",null,null,null,null,null,null,null,null,0]
[null,null,null,null,null,null,"ايجى فروست",null,null,null,null,null,null,null,null,0]
[null,null,null,null,null,null,"ايجى فروست",null,null,null,null,null,null,null,null,0]
[null,null,null,null,null,null,"ايجى فروست",null,null,null,null,null,null,null,null,0]
[null,null,null,null,null,null,"ايجى فروست",null,null,null,null,null,null,null,null,0]
[null,null,null,null,null,null,"ايجى فروست",null,null,null,null,null,null,null,null,0]
[null,null,null,null,null,null,"ايجى فروست",null,null,null,null,null,null,null,null,0]
[null,null,null,null,null,null,"ايجى فروست",null,null,null,null,null,null,null,null,0]
[null,null,null,null,null,null,"ايجى فروست",null,null,null,null,null,null,null,null,0]
[null,null,null,null,null,null,"ايجى فروست",null,null,null,null,null,null,null,null,0]
[null,null,null,null,null,null,"ايجى فروست",null,null,null,null,null,null,null,null,0]
[null,null,null,null,null,null,"ايجى فروست",null,null,null,null,null,null,null,null,0]
[null,null,null,null,null,null,"ايجى فروست",null,null,null,null,null,null,null,null,0]
[null,null,null,null,null,null,"ايجى فروست",null,null,null,null,null,null,null,null,0]
[null,null,null,null,null,null,"ايجى فروست",null,null,null,null,null,null,null,null,0]
[null,null,null,null,null,null,"ايجى فروست",null,null,null,null,null,null,null,null,0]
[null,null,null,null,null,null,"ايجى فروست",null,null,null,null,null,null,null,null,0]
[null,null,null,null,null,null,"ايجى فروست",null,null,null,null,null,null,null,null,0]
[null,null,null,null,null,null,"ايجى فروست",null,null,null,null,null,null,null,null,0]
[null,null,null,null,null,null,"ايجى فروست",null,null,null,null,null,null,null,null,0]
[null,null,null,null,null,null,"ايجى فروست",null,null,null,null,null,null,null,null,0]
[null,null,null,null,null,null,"ايجى فروست",null,null,null,null,null,null,null,null,0]
[null,null,null,null,null,null,"ايجى فروست",null,null,null,null,null,null,null,null,0]
[null,null,null,null,null,null,"ايجى فروست",null,null,null,null,null,null,null,null,0]
[null,null,null,null,null,null,"ايجى فروست",null,null,null,null,null,null,null,null,0]
[null,null,null,null,null,null,"ايجى فروست",null,null,null,null,null,null,null,null,0]
[null,null,null,null,null,null,"ايجى فروست",null,null,null,null,null,null,null,null,0]
[null,null,null,null,null,null,"ايجى فروست",null,null,null,null,null,null,null,null,0]
[null,null,null,null,null,null,"ايجى فروست",null,null,null,null,null,null,null,null,0]
[null,null,null,null,null,null,"ايجى فروست",null,null,null,null,null,null,null,null,0]
[null,null,null,null,null,null,"ايجى فروست",null,null,null,null,null,null,null,null,0]
[null,null,null,null,null,null,"ايجى فروست",null,null,null,null,null,null,null,null,0]
[null,null,null,null,null,null,"ايجى فروست",null,null,null,null,null,null,null,null,0]
[null,null,null,null,null,null,"ايجى فروست",null,null,null,null,null,null,null,null,0]
[null,null,null,null,null,null,"ايجى فروست",null,null,null,null,null,null,null,null,0]
[null,null,null,null,null,null,"ايجى فروست",null,null,null,null,null,null,null,null,0]
[null,null,null,null,null,null,"ايجى فروست",null,null,null,null,null,null,null,null,0]
[null,null,null,null,null,null,"ايجى فروست",null,null,null,null,null,null,null,null,0]
[null,null,null,null,null,null,"ايجى فروست",null,null,null,null,null,null,null,null,0]
[null,null,null,null,null,null,"ايجى فروست",null,null,null,null,null,null,null,null,0]
[null,null,null,null,null,null,"ايجى فروست",null,null,null,null,null,null,null,null,0]
[null,null,null,null,null,null,"ايجى فروست",null,null,null,null,null,null,null,null,0]
[null,null,null,null,null,null,"ايجى فروست",null,null,null,null,null,null,null,null,0]
[null,null,null,null,null,null,"ايجى فروست",null,null,null,null,null,null,null,null,0]
[null,null,null,null,null,null,"ايجى فروست",null,null,null,null,null,null,null,null,0]
[null,null,null,null,null,null,"ايجى فروست",null,null,null,null,null,null,null,null,0]
[null,null,null,null,null,null,"ايجى فروست",null,null,null,null,null,null,null,null,0]
[null,null,null,null,null,null,"ايجى فروست",null,null,null,null,null,null,null,null,0]
[null,null,null,null,null,null,{"$f":"+G328","v":"ايجى فروست"},null,null,null,null,null,null,null,null,{"$f":"+N329*O329","v":0}]
[null,null,null,null,null,null,"ايجى فروست",null,null,null,null,null,null,null,null,0]
[null,null,null,null,null,null,"ايجى فروست",null,null,null,null,null,null,null,null,0]
[null,null,null,null,null,null,"ايجى فروست",null,null,null,null,null,null,null,null,0]
[null,null,null,null,null,null,"ايجى فروست",null,null,null,null,null,null,null,null,0]
[null,null,null,null,null,null,"ايجى فروست",null,null,null,null,null,null,null,null,0]
[null,null,null,null,null,null,"ايجى فروست",null,null,null,null,null,null,null,null,0]
[null,null,null,null,null,null,"ايجى فروست",null,null,null,null,null,null,null,null,0]
[null,null,null,null,null,null,"ايجى فروست",null,null,null,null,null,null,null,null,0]
[null,null,null,null,null,null,"ايجى فروست",null,null,null,null,null,null,null,null,0]
[null,null,null,null,null,null,"ايجى فروست",null,null,null,null,null,null,null,null,0]
[null,null,null,null,null,null,"ايجى فروست",null,null,null,null,null,null,null,null,0]
[null,null,null,null,null,null,"ايجى فروست",null,null,null,null,null,null,null,null,0]
[null,null,null,null,null,null,"ايجى فروست",null,null,null,null,null,null,null,null,0]
[null,null,null,null,null,null,"ايجى فروست",null,null,null,null,null,null,null,null,0]
[null,null,null,null,null,null,"ايجى فروست",null,null,null,null,null,null,null,null,0]
[null,null,null,null,null,null,"ايجى فروست",null,null,null,null,null,null,null,null,0]
[null,null,null,null,null,null,"ايجى فروست",null,null,null,null,null,null,null,null,0]
[null,null,null,null,null,null,"ايجى فروست",null,null,null,null,null,null,null,null,0]
[null,null,null,null,null,null,"ايجى فروست",null,null,null,null,null,null,null,null,0]
[null,null,null,null,null,null,"ايجى فروست",null,null,null,null,null,null,null,null,0]
[null,null,null,null,null,null,"ايجى فروست",null,null,null,null,null,null,null,null,0]
[null,null,null,null,null,null,"ايجى فروست",null,null,null,null,null,null,null,null,0]
[null,null,null,null,null,null,"ايجى فروست",null,null,null,null,null,null,null,null,0]
[null,null,null,null,null,null,"ايجى فروست",null,null,null,null,null,null,null,null,0]
[null,null,null,null,null,null,"ايجى فروست",null,null,null,null,null,null,null,null,0]
[null,null,null,null,null,null,"ايجى فروست",null,null,null,null,null,null,null,null,0]
[null,null,null,null,null,null,"ايجى فروست",null,null,null,null,null,null,null,null,0]
[null,null,null,null,null,null,"ايجى فروست",null,null,null,null,null,null,null,null,0]
[null,null,null,null,null,null,"ايجى فروست",null,null,null,null,null,null,null,null,0]
[null,null,null,null,null,null,"ايجى فروست",null,null,null,null,null,null,null,null,0]
[null,null,null,null,null,null,"ايجى فروست",null,null,null,null,null,null,null,null,0]
[null,null,null,null,null,null,"ايجى فروست",null,null,null,null,null,null,null,null,0]
[null,null,null,null,null,null,"ايجى فروست",null,null,null,null,null,null,null,null,0]
[null,null,null,null,null,null,"ايجى فروست",null,null,null,null,null,null,null,null,0]
[null,null,null,null,null,null,"ايجى فروست",null,null,null,null,null,null,null,null,0]
[null,null,null,null,null,null,"ايجى فروست",null,null,null,null,null,null,null,null,0]
[null,null,null,null,null,null,"ايجى فروست",null,null,null,null,null,null,null,null,0]
[null,null,null,null,null,null,"ايجى فروست",null,null,null,null,null,null,null,null,0]
[null,null,null,null,null,null,"ايجى فروست",null,null,null,null,null,null,null,null,0]
[null,null,null,null,null,null,"ايجى فروست",null,null,null,null,null,null,null,null,0]
[null,null,null,null,null,null,"ايجى فروست",null,null,null,null,null,null,null,null,0]
[null,null,null,null,null,null,"ايجى فروست",null,null,null,null,null,null,null,null,0]
[null,null,null,null,null,null,"ايجى فروست",null,null,null,null,null,null,null,null,0]
[null,null,null,null,null,null,"ايجى فروست",null,null,null,null,null,null,null,null,0]
[null,null,null,null,null,null,"ايجى فروست",null,null,null,null,null,null,null,null,0]
[null,null,null,null,null,null,"ايجى فروست",null,null,null,null,null,null,null,null,0]
[null,null,null,null,null,null,"ايجى فروست",null,null,null,null,null,null,null,null,0]
[null,null,null,null,null,null,"ايجى فروست",null,null,null,null,null,null,null,null,0]
[null,null,null,null,null,null,"ايجى فروست",null,null,null,null,null,null,null,null,0]
[null,null,null,null,null,null,"ايجى فروست",null,null,null,null,null,null,null,null,0]
[null,null,null,null,null,null,"ايجى فروست",null,null,null,null,null,null,null,null,0]
[null,null,null,null,null,null,"ايجى فروست",null,null,null,null,null,null,null,null,0]
[null,null,null,null,null,null,"ايجى فروست",null,null,null,null,null,null,null,null,0]
[null,null,null,null,null,null,"ايجى فروست",null,null,null,null,null,null,null,null,0]
[null,null,null,null,null,null,"ايجى فروست",null,null,null,null,null,null,null,null,0]
[null,null,null,null,null,null,"ايجى فروست",null,null,null,null,null,null,null,null,0]
[null,null,null,null,null,null,"ايجى فروست",null,null,null,null,null,null,null,null,0]
[null,null,null,null,null,null,"ايجى فروست",null,null,null,null,null,null,null,null,0]
[null,null,null,null,null,null,"ايجى فروست",null,null,null,null,null,null,null,null,0]
[null,null,null,null,null,null,"ايجى فروست",null,null,null,null,null,null,null,null,0]
[null,null,null,null,null,null,"ايجى فروست",null,null,null,null,null,null,null,null,0]
[null,null,null,null,null,null,"ايجى فروست",null,null,null,null,null,null,null,null,0]
[null,null,null,null,null,null,"ايجى فروست",null,null,null,null,null,null,null,null,0]
[null,null,null,null,null,null,{"$f":"+G392","v":"ايجى فروست"},null,null,null,null,null,null,null,null,{"$f":"+N393*O393","v":0}]
[null,null,null,null,null,null,"ايجى فروست",null,null,null,null,null,null,null,null,0]
[null,null,null,null,null,null,"ايجى فروست",null,null,null,null,null,null,null,null,0]
[null,null,null,null,null,null,"ايجى فروست",null,null,null,null,null,null,null,null,0]
[null,null,null,null,null,null,"ايجى فروست",null,null,null,null,null,null,null,null,0]
[null,null,null,null,null,null,"ايجى فروست",null,null,null,null,null,null,null,null,0]
[null,null,null,null,null,null,"ايجى فروست",null,null,null,null,null,null,null,null,0]
[null,null,null,null,null,null,"ايجى فروست",null,null,null,null,null,null,null,null,0]
[null,null,null,null,null,null,"ايجى فروست",null,null,null,null,null,null,null,null,0]
[null,null,null,null,null,null,"ايجى فروست",null,null,null,null,null,null,null,null,0]
[null,null,null,null,null,null,"ايجى فروست",null,null,null,null,null,null,null,null,0]
[null,null,null,null,null,null,"ايجى فروست",null,null,null,null,null,null,null,null,0]
[null,null,null,null,null,null,"ايجى فروست",null,null,null,null,null,null,null,null,0]
[null,null,null,null,null,null,"ايجى فروست",null,null,null,null,null,null,null,null,0]
[null,null,null,null,null,null,"ايجى فروست",null,null,null,null,null,null,null,null,0]
[null,null,null,null,null,null,"ايجى فروست",null,null,null,null,null,null,null,null,0]
[null,null,null,null,null,null,"ايجى فروست",null,null,null,null,null,null,null,null,0]
[null,null,null,null,null,null,"ايجى فروست",null,null,null,null,null,null,null,null,0]
[null,null,null,null,null,null,"ايجى فروست",null,null,null,null,null,null,null,null,0]
[null,null,null,null,null,null,"ايجى فروست",null,null,null,null,null,null,null,null,0]
[null,null,null,null,null,null,"ايجى فروست",null,null,null,null,null,null,null,null,0]
[null,null,null,null,null,null,"ايجى فروست",null,null,null,null,null,null,null,null,0]
[null,null,null,null,null,null,"ايجى فروست",null,null,null,null,null,null,null,null,0]
[null,null,null,null,null,null,"ايجى فروست",null,null,null,null,null,null,null,null,0]
[null,null,null,null,null,null,"ايجى فروست",null,null,null,null,null,null,null,null,0]
[null,null,null,null,null,null,"ايجى فروست",null,null,null,null,null,null,null,null,0]
[null,null,null,null,null,null,"ايجى فروست",null,null,null,null,null,null,null,null,0]
[null,null,null,null,null,null,"ايجى فروست",null,null,null,null,null,null,null,null,0]
[null,null,null,null,null,null,"ايجى فروست",null,null,null,null,null,null,null,null,0]
[null,null,null,null,null,null,"ايجى فروست",null,null,null,null,null,null,null,null,0]
[null,null,null,null,null,null,"ايجى فروست",null,null,null,null,null,null,null,null,0]
[null,null,null,null,null,null,"ايجى فروست",null,null,null,null,null,null,null,null,0]
[null,null,null,null,null,null,"ايجى فروست",null,null,null,null,null,null,null,null,0]
[null,null,null,null,null,null,"ايجى فروست",null,null,null,null,null,null,null,null,0]
[null,null,null,null,null,null,"ايجى فروست",null,null,null,null,null,null,null,null,0]
[null,null,null,null,null,null,"ايجى فروست",null,null,null,null,null,null,null,null,0]
[null,null,null,null,null,null,"ايجى فروست",null,null,null,null,null,null,null,null,0]
[null,null,null,null,null,null,"ايجى فروست",null,null,null,null,null,null,null,null,0]
[null,null,null,null,null,null,"ايجى فروست",null,null,null,null,null,null,null,null,0]
[null,null,null,null,null,null,"ايجى فروست",null,null,null,null,null,null,null,null,0]
[null,null,null,null,null,null,"ايجى فروست",null,null,null,null,null,null,null,null,0]
[null,null,null,null,null,null,"ايجى فروست",null,null,null,null,null,null,null,null,0]
[null,null,null,null,null,null,"ايجى فروست",null,null,null,null,null,null,null,null,0]
[null,null,null,null,null,null,"ايجى فروست",null,null,null,null,null,null,null,null,0]
[null,null,null,null,null,null,"ايجى فروست",null,null,null,null,null,null,null,null,0]
[null,null,null,null,null,null,"ايجى فروست",null,null,null,null,null,null,null,null,0]
[null,null,null,null,null,null,"ايجى فروست",null,null,null,null,null,null,null,null,0]
[null,null,null,null,null,null,"ايجى فروست",null,null,null,null,null,null,null,null,0]
[null,null,null,null,null,null,"ايجى فروست",null,null,null,null,null,null,null,null,0]
[null,null,null,null,null,null,"ايجى فروست",null,null,null,null,null,null,null,null,0]
[null,null,null,null,null,null,"ايجى فروست",null,null,null,null,null,null,null,null,0]
[null,null,null,null,null,null,"ايجى فروست",null,null,null,null,null,null,null,null,0]
[null,null,null,null,null,null,"ايجى فروست",null,null,null,null,null,null,null,null,0]
[null,null,null,null,null,null,"ايجى فروست",null,null,null,null,null,null,null,null,0]
[null,null,null,null,null,null,"ايجى فروست",null,null,null,null,null,null,null,null,0]
[null,null,null,null,null,null,"ايجى فروست",null,null,null,null,null,null,null,null,0]
[null,null,null,null,null,null,"ايجى فروست",null,null,null,null,null,null,null,null,0]
[null,null,null,null,null,null,"ايجى فروست",null,null,null,null,null,null,null,null,0]
[null,null,null,null,null,null,"ايجى فروست",null,null,null,null,null,null,null,null,0]
[null,null,null,null,null,null,"ايجى فروست",null,null,null,null,null,null,null,null,0]
[null,null,null,null,null,null,"ايجى فروست",null,null,null,null,null,null,null,null,0]
[null,null,null,null,null,null,"ايجى فروست",null,null,null,null,null,null,null,null,0]
[null,null,null,null,null,null,"ايجى فروست",null,null,null,null,null,null,null,null,0]
[null,null,null,null,null,null,"ايجى فروست",null,null,null,null,null,null,null,null,0]
[null,null,null,null,null,null,{"$f":"+G456","v":"ايجى فروست"},null,null,null,null,null,null,null,null,{"$f":"+N457*O457","v":0}]
[null,null,null,null,null,null,"ايجى فروست",null,null,null,null,null,null,null,null,0]
[null,null,null,null,null,null,"ايجى فروست",null,null,null,null,null,null,null,null,0]
[null,null,null,null,null,null,"ايجى فروست",null,null,null,null,null,null,null,null,0]
[null,null,null,null,null,null,"ايجى فروست",null,null,null,null,null,null,null,null,0]
[null,null,null,null,null,null,"ايجى فروست",null,null,null,null,null,null,null,null,0]
[null,null,null,null,null,null,"ايجى فروست",null,null,null,null,null,null,null,null,0]
[null,null,null,null,null,null,"ايجى فروست",null,null,null,null,null,null,null,null,0]
[null,null,null,null,null,null,"ايجى فروست",null,null,null,null,null,null,null,null,0]
[null,null,null,null,null,null,"ايجى فروست",null,null,null,null,null,null,null,null,0]
[null,null,null,null,null,null,"ايجى فروست",null,null,null,null,null,null,null,null,0]
[null,null,null,null,null,null,"ايجى فروست",null,null,null,null,null,null,null,null,0]
[null,null,null,null,null,null,"ايجى فروست",null,null,null,null,null,null,null,null,0]
[null,null,null,null,null,null,"ايجى فروست",null,null,null,null,null,null,null,null,0]
[null,null,null,null,null,null,"ايجى فروست",null,null,null,null,null,null,null,null,0]
[null,null,null,null,null,null,"ايجى فروست",null,null,null,null,null,null,null,null,0]
[null,null,null,null,null,null,"ايجى فروست",null,null,null,null,null,null,null,null,0]
[null,null,null,null,null,null,"ايجى فروست",null,null,null,null,null,null,null,null,0]
[null,null,null,null,null,null,"ايجى فروست",null,null,null,null,null,null,null,null,0]
[null,null,null,null,null,null,"ايجى فروست",null,null,null,null,null,null,null,null,0]
[null,null,null,null,null,null,"ايجى فروست",null,null,null,null,null,null,null,null,0]
[null,null,null,null,null,null,"ايجى فروست",null,null,null,null,null,null,null,null,0]
[null,null,null,null,null,null,"ايجى فروست",null,null,null,null,null,null,null,null,0]
[null,null,null,null,null,null,"ايجى فروست",null,null,null,null,null,null,null,null,0]
[null,null,null,null,null,null,"ايجى فروست",null,null,null,null,null,null,null,null,0]
[null,null,null,null,null,null,"ايجى فروست",null,null,null,null,null,null,null,null,0]
[null,null,null,null,null,null,"ايجى فروست",null,null,null,null,null,null,null,null,0]
[null,null,null,null,null,null,"ايجى فروست",null,null,null,null,null,null,null,null,0]
[null,null,null,null,null,null,"ايجى فروست",null,null,null,null,null,null,null,null,0]
[null,null,null,null,null,null,"ايجى فروست",null,null,null,null,null,null,null,null,0]
[null,null,null,null,null,null,"ايجى فروست",null,null,null,null,null,null,null,null,0]
[null,null,null,null,null,null,"ايجى فروست",null,null,null,null,null,null,null,null,0]
[null,null,null,null,null,null,"ايجى فروست",null,null,null,null,null,null,null,null,0]
[null,null,null,null,null,null,"ايجى فروست",null,null,null,null,null,null,null,null,0]
[null,null,null,null,null,null,"ايجى فروست",null,null,null,null,null,null,null,null,0]
[null,null,null,null,null,null,"ايجى فروست",null,null,null,null,null,null,null,null,0]
[null,null,null,null,null,null,"ايجى فروست",null,null,null,null,null,null,null,null,0]
[null,null,null,null,null,null,"ايجى فروست",null,null,null,null,null,null,null,null,0]
[null,null,null,null,null,null,"ايجى فروست",null,null,null,null,null,null,null,null,0]
[null,null,null,null,null,null,"ايجى فروست",null,null,null,null,null,null,null,null,0]
[null,null,null,null,null,null,"ايجى فروست",null,null,null,null,null,null,null,null,0]
[null,null,null,null,null,null,"ايجى فروست",null,null,null,null,null,null,null,null,0]
[null,null,null,null,null,null,"ايجى فروست",null,null,null,null,null,null,null,null,0]
[null,null,null,null,null,null,"ايجى فروست",null,null,null,null,null,null,null,null,0]
[null,null,null,null,null,null,"ايجى فروست",null,null,null,null,null,null,null,null,0]
[null,null,null,null,null,null,"ايجى فروست",null,null,null,null,null,null,null,null,0]
[null,null,null,null,null,null,"ايجى فروست",null,null,null,null,null,null,null,null,0]
[null,null,null,null,null,null,"ايجى فروست",null,null,null,null,null,null,null,null,0]
[null,null,null,null,null,null,"ايجى فروست",null,null,null,null,null,null,null,null,0]
[null,null,null,null,null,null,"ايجى فروست",null,null,null,null,null,null,null,null,0]
[null,null,null,null,null,null,"ايجى فروست",null,null,null,null,null,null,null,null,0]
[null,null,null,null,null,null,"ايجى فروست",null,null,null,null,null,null,null,null,0]
[null,null,null,null,null,null,"ايجى فروست",null,null,null,null,null,null,null,null,0]
[null,null,null,null,null,null,"ايجى فروست",null,null,null,null,null,null,null,null,0]
[null,null,null,null,null,null,"ايجى فروست",null,null,null,null,null,null,null,null,0]
[null,null,null,null,null,null,"ايجى فروست",null,null,null,null,null,null,null,null,0]
[null,null,null,null,null,null,"ايجى فروست",null,null,null,null,null,null,null,null,0]
[null,null,null,null,null,null,"ايجى فروست",null,null,null,null,null,null,null,null,0]
[null,null,null,null,null,null,"ايجى فروست",null,null,null,null,null,null,null,null,0]
[null,null,null,null,null,null,"ايجى فروست",null,null,null,null,null,null,null,null,0]
[null,null,null,null,null,null,"ايجى فروست",null,null,null,null,null,null,null,null,0]
[null,null,null,null,null,null,"ايجى فروست",null,null,null,null,null,null,null,null,0]
[null,null,null,null,null,null,"ايجى فروست",null,null,null,null,null,null,null,null,0]
[null,null,null,null,null,null,"ايجى فروست",null,null,null,null,null,null,null,null,0]
[null,null,null,null,null,null,{"$f":"+G520","v":"ايجى فروست"},null,null,null,null,null,null,null,null,{"$f":"+N521*O521","v":0}]
[null,null,null,null,null,null,"ايجى فروست",null,null,null,null,null,null,null,null,0]
[null,null,null,null,null,null,"ايجى فروست",null,null,null,null,null,null,null,null,0]
[null,null,null,null,null,null,"ايجى فروست",null,null,null,null,null,null,null,null,0]
[null,null,null,null,null,null,"ايجى فروست",null,null,null,null,null,null,null,null,0]
[null,null,null,null,null,null,"ايجى فروست",null,null,null,null,null,null,null,null,0]
[null,null,null,null,null,null,"ايجى فروست",null,null,null,null,null,null,null,null,0]
[null,null,null,null,null,null,"ايجى فروست",null,null,null,null,null,null,null,null,0]
[null,null,null,null,null,null,"ايجى فروست",null,null,null,null,null,null,null,null,0]
[null,null,null,null,null,null,"ايجى فروست",null,null,null,null,null,null,null,null,0]
[null,null,null,null,null,null,"ايجى فروست",null,null,null,null,null,null,null,null,0]
[null,null,null,null,null,null,"ايجى فروست",null,null,null,null,null,null,null,null,0]
[null,null,null,null,null,null,"ايجى فروست",null,null,null,null,null,null,null,null,0]
[null,null,null,null,null,null,"ايجى فروست",null,null,null,null,null,null,null,null,0]
[null,null,null,null,null,null,"ايجى فروست",null,null,null,null,null,null,null,null,0]
[null,null,null,null,null,null,"ايجى فروست",null,null,null,null,null,null,null,null,0]
[null,null,null,null,null,null,"ايجى فروست",null,null,null,null,null,null,null,null,0]
[null,null,null,null,null,null,"ايجى فروست",null,null,null,null,null,null,null,null,0]
[null,null,null,null,null,null,"ايجى فروست",null,null,null,null,null,null,null,null,0]
[null,null,null,null,null,null,"ايجى فروست",null,null,null,null,null,null,null,null,0]
[null,null,null,null,null,null,"ايجى فروست",null,null,null,null,null,null,null,null,0]
[null,null,null,null,null,null,"ايجى فروست",null,null,null,null,null,null,null,null,0]
[null,null,null,null,null,null,"ايجى فروست",null,null,null,null,null,null,null,null,0]
[null,null,null,null,null,null,"ايجى فروست",null,null,null,null,null,null,null,null,0]
[null,null,null,null,null,null,"ايجى فروست",null,null,null,null,null,null,null,null,0]
[null,null,null,null,null,null,"ايجى فروست",null,null,null,null,null,null,null,null,0]
[null,null,null,null,null,null,"ايجى فروست",null,null,null,null,null,null,null,null,0]
[null,null,null,null,null,null,"ايجى فروست",null,null,null,null,null,null,null,null,0]
[null,null,null,null,null,null,"ايجى فروست",null,null,null,null,null,null,null,null,0]
[null,null,null,null,null,null,"ايجى فروست",null,null,null,null,null,null,null,null,0]
[null,null,null,null,null,null,"ايجى فروست",null,null,null,null,null,null,null,null,0]
[null,null,null,null,null,null,"ايجى فروست",null,null,null,null,null,null,null,null,0]
[null,null,null,null,null,null,"ايجى فروست",null,null,null,null,null,null,null,null,0]
[null,null,null,null,null,null,"ايجى فروست",null,null,null,null,null,null,null,null,0]
[null,null,null,null,null,null,"ايجى فروست",null,null,null,null,null,null,null,null,0]
[null,null,null,null,null,null,"ايجى فروست",null,null,null,null,null,null,null,null,0]
[null,null,null,null,null,null,"ايجى فروست",null,null,null,null,null,null,null,null,0]
[null,null,null,null,null,null,"ايجى فروست",null,null,null,null,null,null,null,null,0]
[null,null,null,null,null,null,"ايجى فروست",null,null,null,null,null,null,null,null,0]
[null,null,null,null,null,null,"ايجى فروست",null,null,null,null,null,null,null,null,0]
[null,null,null,null,null,null,"ايجى فروست",null,null,null,null,null,null,null,null,0]
[null,null,null,null,null,null,"ايجى فروست",null,null,null,null,null,null,null,null,0]
[null,null,null,null,null,null,"ايجى فروست",null,null,null,null,null,null,null,null,0]
[null,null,null,null,null,null,"ايجى فروست",null,null,null,null,null,null,null,null,0]
[null,null,null,null,null,null,"ايجى فروست",null,null,null,null,null,null,null,null,0]
[null,null,null,null,null,null,"ايجى فروست",null,null,null,null,null,null,null,null,0]
[null,null,null,null,null,null,"ايجى فروست",null,null,null,null,null,null,null,null,0]
[null,null,null,null,null,null,"ايجى فروست",null,null,null,null,null,null,null,null,0]
[null,null,null,null,null,null,"ايجى فروست",null,null,null,null,null,null,null,null,0]
[null,null,null,null,null,null,"ايجى فروست",null,null,null,null,null,null,null,null,0]
[null,null,null,null,null,null,"ايجى فروست",null,null,null,null,null,null,null,null,0]
[null,null,null,null,null,null,"ايجى فروست",null,null,null,null,null,null,null,null,0]
[null,null,null,null,null,null,"ايجى فروست",null,null,null,null,null,null,null,null,0]
[null,null,null,null,null,null,"ايجى فروست",null,null,null,null,null,null,null,null,0]
[null,null,null,null,null,null,"ايجى فروست",null,null,null,null,null,null,null,null,0]
[null,null,null,null,null,null,"ايجى فروست",null,null,null,null,null,null,null,null,0]
[null,null,null,null,null,null,"ايجى فروست",null,null,null,null,null,null,null,null,0]
[null,null,null,null,null,null,"ايجى فروست",null,null,null,null,null,null,null,null,0]
[null,null,null,null,null,null,"ايجى فروست",null,null,null,null,null,null,null,null,0]
[null,null,null,null,null,null,"ايجى فروست",null,null,null,null,null,null,null,null,0]
[null,null,null,null,null,null,"ايجى فروست",null,null,null,null,null,null,null,null,0]
[null,null,null,null,null,null,"ايجى فروست",null,null,null,null,null,null,null,null,0]
[null,null,null,null,null,null,"ايجى فروست",null,null,null,null,null,null,null,null,0]
[null,null,null,null,null,null,"ايجى فروست",null,null,null,null,null,null,null,null,0]
[null,null,null,null,null,null,{"$f":"+G584","v":"ايجى فروست"},null,null,null,null,null,null,null,null,{"$f":"+N585*O585","v":0}]
[null,null,null,null,null,null,"ايجى فروست",null,null,null,null,null,null,null,null,0]
[null,null,null,null,null,null,"ايجى فروست",null,null,null,null,null,null,null,null,0]
[null,null,null,null,null,null,"ايجى فروست",null,null,null,null,null,null,null,null,0]
[null,null,null,null,null,null,"ايجى فروست",null,null,null,null,null,null,null,null,0]
[null,null,null,null,null,null,"ايجى فروست",null,null,null,null,null,null,null,null,0]
[null,null,null,null,null,null,"ايجى فروست",null,null,null,null,null,null,null,null,0]
[null,null,null,null,null,null,"ايجى فروست",null,null,null,null,null,null,null,null,0]
[null,null,null,null,null,null,"ايجى فروست",null,null,null,null,null,null,null,null,0]
[null,null,null,null,null,null,"ايجى فروست",null,null,null,null,null,null,null,null,0]
[null,null,null,null,null,null,"ايجى فروست",null,null,null,null,null,null,null,null,0]
[null,null,null,null,null,null,"ايجى فروست",null,null,null,null,null,null,null,null,0]
[null,null,null,null,null,null,"ايجى فروست",null,null,null,null,null,null,null,null,0]
[null,null,null,null,null,null,"ايجى فروست",null,null,null,null,null,null,null,null,0]
[null,null,null,null,null,null,"ايجى فروست",null,null,null,null,null,null,null,null,0]
[null,null,null,null,null,null,"ايجى فروست",null,null,null,null,null,null,null,null,0]
[null,null,null,null,null,null,"ايجى فروست",null,null,null,null,null,null,null,null,0]
[null,null,null,null,null,null,"ايجى فروست",null,null,null,null,null,null,null,null,0]
[null,null,null,null,null,null,"ايجى فروست",null,null,null,null,null,null,null,null,0]
[null,null,null,null,null,null,"ايجى فروست",null,null,null,null,null,null,null,null,0]
[null,null,null,null,null,null,"ايجى فروست",null,null,null,null,null,null,null,null,0]
[null,null,null,null,null,null,"ايجى فروست",null,null,null,null,null,null,null,null,0]
[null,null,null,null,null,null,"ايجى فروست",null,null,null,null,null,null,null,null,0]
[null,null,null,null,null,null,"ايجى فروست",null,null,null,null,null,null,null,null,0]
[null,null,null,null,null,null,"ايجى فروست",null,null,null,null,null,null,null,null,0]
[null,null,null,null,null,null,"ايجى فروست",null,null,null,null,null,null,null,null,0]
[null,null,null,null,null,null,"ايجى فروست",null,null,null,null,null,null,null,null,0]
[null,null,null,null,null,null,"ايجى فروست",null,null,null,null,null,null,null,null,0]
[null,null,null,null,null,null,"ايجى فروست",null,null,null,null,null,null,null,null,0]
[null,null,null,null,null,null,"ايجى فروست",null,null,null,null,null,null,null,null,0]
[null,null,null,null,null,null,"ايجى فروست",null,null,null,null,null,null,null,null,0]
[null,null,null,null,null,null,"ايجى فروست",null,null,null,null,null,null,null,null,0]
[null,null,null,null,null,null,"ايجى فروست",null,null,null,null,null,null,null,null,0]
[null,null,null,null,null,null,"ايجى فروست",null,null,null,null,null,null,null,null,0]
[null,null,null,null,null,null,"ايجى فروست",null,null,null,null,null,null,null,null,0]
[null,null,null,null,null,null,"ايجى فروست",null,null,null,null,null,null,null,null,0]
[null,null,null,null,null,null,"ايجى فروست",null,null,null,null,null,null,null,null,0]
[null,null,null,null,null,null,"ايجى فروست",null,null,null,null,null,null,null,null,0]
[null,null,null,null,null,null,"ايجى فروست",null,null,null,null,null,null,null,null,0]
[null,null,null,null,null,null,"ايجى فروست",null,null,null,null,null,null,null,null,0]
[null,null,null,null,null,null,"ايجى فروست",null,null,null,null,null,null,null,null,0]
[null,null,null,null,null,null,"ايجى فروست",null,null,null,null,null,null,null,null,0]
[null,null,null,null,null,null,"ايجى فروست",null,null,null,null,null,null,null,null,0]
[null,null,null,null,null,null,"ايجى فروست",null,null,null,null,null,null,null,null,0]
[null,null,null,null,null,null,"ايجى فروست",null,null,null,null,null,null,null,null,0]
[null,null,null,null,null,null,"ايجى فروست",null,null,null,null,null,null,null,null,0]
[null,null,null,null,null,null,"ايجى فروست",null,null,null,null,null,null,null,null,0]
[null,null,null,null,null,null,"ايجى فروست",null,null,null,null,null,null,null,null,0]
[null,null,null,null,null,null,"ايجى فروست",null,null,null,null,null,null,null,null,0]
[null,null,null,null,null,null,"ايجى فروست",null,null,null,null,null,null,null,null,0]
[null,null,null,null,null,null,"ايجى فروست",null,null,null,null,null,null,null,null,0]
[null,null,null,null,null,null,"ايجى فروست",null,null,null,null,null,null,null,null,0]
[null,null,null,null,null,null,"ايجى فروست",null,null,null,null,null,null,null,null,0]
[null,null,null,null,null,null,"ايجى فروست",null,null,null,null,null,null,null,null,0]
[null,null,null,null,null,null,"ايجى فروست",null,null,null,null,null,null,null,null,0]
[null,null,null,null,null,null,"ايجى فروست",null,null,null,null,null,null,null,null,0]
[null,null,null,null,null,null,"ايجى فروست",null,null,null,null,null,null,null,null,0]
[null,null,null,null,null,null,"ايجى فروست",null,null,null,null,null,null,null,null,0]
[null,null,null,null,null,null,"ايجى فروست",null,null,null,null,null,null,null,null,0]
[null,null,null,null,null,null,"ايجى فروست",null,null,null,null,null,null,null,null,0]
[null,null,null,null,null,null,"ايجى فروست",null,null,null,null,null,null,null,null,0]
[null,null,null,null,null,null,"ايجى فروست",null,null,null,null,null,null,null,null,0]
[null,null,null,null,null,null,"ايجى فروست",null,null,null,null,null,null,null,null,0]
[null,null,null,null,null,null,"ايجى فروست",null,null,null,null,null,null,null,null,0]
[null,null,null,null,null,null,{"$f":"+G648","v":"ايجى فروست"},null,null,null,null,null,null,null,null,{"$f":"+N649*O649","v":0}]
[null,null,null,null,null,null,"ايجى فروست",null,null,null,null,null,null,null,null,0]
[null,null,null,null,null,null,"ايجى فروست",null,null,null,null,null,null,null,null,0]
[null,null,null,null,null,null,"ايجى فروست",null,null,null,null,null,null,null,null,0]
[null,null,null,null,null,null,"ايجى فروست",null,null,null,null,null,null,null,null,0]
[null,null,null,null,null,null,"ايجى فروست",null,null,null,null,null,null,null,null,0]
[null,null,null,null,null,null,"ايجى فروست",null,null,null,null,null,null,null,null,0]
[null,null,null,null,null,null,"ايجى فروست",null,null,null,null,null,null,null,null,0]
[null,null,null,null,null,null,"ايجى فروست",null,null,null,null,null,null,null,null,0]
[null,null,null,null,null,null,"ايجى فروست",null,null,null,null,null,null,null,null,0]
[null,null,null,null,null,null,"ايجى فروست",null,null,null,null,null,null,null,null,0]
[null,null,null,null,null,null,"ايجى فروست",null,null,null,null,null,null,null,null,0]
[null,null,null,null,null,null,"ايجى فروست",null,null,null,null,null,null,null,null,0]
[null,null,null,null,null,null,"ايجى فروست",null,null,null,null,null,null,null,null,0]
[null,null,null,null,null,null,"ايجى فروست",null,null,null,null,null,null,null,null,0]
[null,null,null,null,null,null,"ايجى فروست",null,null,null,null,null,null,null,null,0]
[null,null,null,null,null,null,"ايجى فروست",null,null,null,null,null,null,null,null,0]
[null,null,null,null,null,null,"ايجى فروست",null,null,null,null,null,null,null,null,0]
[null,null,null,null,null,null,"ايجى فروست",null,null,null,null,null,null,null,null,0]
[null,null,null,null,null,null,"ايجى فروست",null,null,null,null,null,null,null,null,0]
[null,null,null,null,null,null,"ايجى فروست",null,null,null,null,null,null,null,null,0]
[null,null,null,null,null,null,"ايجى فروست",null,null,null,null,null,null,null,null,0]
[null,null,null,null,null,null,"ايجى فروست",null,null,null,null,null,null,null,null,0]
[null,null,null,null,null,null,"ايجى فروست",null,null,null,null,null,null,null,null,0]
[null,null,null,null,null,null,"ايجى فروست",null,null,null,null,null,null,null,null,0]
[null,null,null,null,null,null,"ايجى فروست",null,null,null,null,null,null,null,null,0]
[null,null,null,null,null,null,"ايجى فروست",null,null,null,null,null,null,null,null,0]
[null,null,null,null,null,null,"ايجى فروست",null,null,null,null,null,null,null,null,0]
[null,null,null,null,null,null,"ايجى فروست",null,null,null,null,null,null,null,null,0]
[null,null,null,null,null,null,"ايجى فروست",null,null,null,null,null,null,null,null,0]
[null,null,null,null,null,null,"ايجى فروست",null,null,null,null,null,null,null,null,0]
[null,null,null,null,null,null,"ايجى فروست",null,null,null,null,null,null,null,null,0]
[null,null,null,null,null,null,"ايجى فروست",null,null,null,null,null,null,null,null,0]
[null,null,null,null,null,null,"ايجى فروست",null,null,null,null,null,null,null,null,0]
[null,null,null,null,null,null,"ايجى فروست",null,null,null,null,null,null,null,null,0]
[null,null,null,null,null,null,"ايجى فروست",null,null,null,null,null,null,null,null,0]
[null,null,null,null,null,null,"ايجى فروست",null,null,null,null,null,null,null,null,0]
[null,null,null,null,null,null,"ايجى فروست",null,null,null,null,null,null,null,null,0]
[null,null,null,null,null,null,"ايجى فروست",null,null,null,null,null,null,null,null,0]
[null,null,null,null,null,null,"ايجى فروست",null,null,null,null,null,null,null,null,0]
[null,null,null,null,null,null,"ايجى فروست",null,null,null,null,null,null,null,null,0]
[null,null,null,null,null,null,"ايجى فروست",null,null,null,null,null,null,null,null,0]
[null,null,null,null,null,null,"ايجى فروست",null,null,null,null,null,null,null,null,0]
[null,null,null,null,null,null,"ايجى فروست",null,null,null,null,null,null,null,null,0]
[null,null,null,null,null,null,"ايجى فروست",null,null,null,null,null,null,null,null,0]
[null,null,null,null,null,null,"ايجى فروست",null,null,null,null,null,null,null,null,0]
[null,null,null,null,null,null,"ايجى فروست",null,null,null,null,null,null,null,null,0]
[null,null,null,null,null,null,"ايجى فروست",null,null,null,null,null,null,null,null,0]
[null,null,null,null,null,null,"ايجى فروست",null,null,null,null,null,null,null,null,0]
[null,null,null,null,null,null,"ايجى فروست",null,null,null,null,null,null,null,null,0]
[null,null,null,null,null,null,"ايجى فروست",null,null,null,null,null,null,null,null,0]
[null,null,null,null,null,null,"ايجى فروست",null,null,null,null,null,null,null,null,0]
[null,null,null,null,null,null,"ايجى فروست",null,null,null,null,null,null,null,null,0]
[null,null,null,null,null,null,"ايجى فروست",null,null,null,null,null,null,null,null,0]
[null,null,null,null,null,null,"ايجى فروست",null,null,null,null,null,null,null,null,0]
[null,null,null,null,null,null,"ايجى فروست",null,null,null,null,null,null,null,null,0]
[null,null,null,null,null,null,"ايجى فروست",null,null,null,null,null,null,null,null,0]
[null,null,null,null,null,null,"ايجى فروست",null,null,null,null,null,null,null,null,0]
[null,null,null,null,null,null,"ايجى فروست",null,null,null,null,null,null,null,null,0]
[null,null,null,null,null,null,"ايجى فروست",null,null,null,null,null,null,null,null,0]
[null,null,null,null,null,null,"ايجى فروست",null,null,null,null,null,null,null,null,0]
[null,null,null,null,null,null,"ايجى فروست",null,null,null,null,null,null,null,null,0]
[null,null,null,null,null,null,"ايجى فروست",null,null,null,null,null,null,null,null,0]
[null,null,null,null,null,null,"ايجى فروست",null,null,null,null,null,null,null,null,0]
[null,null,null,null,null,null,{"$f":"+G712","v":"ايجى فروست"},null,null,null,null,null,null,null,null,{"$f":"+N713*O713","v":0}]
[null,null,null,null,null,null,"ايجى فروست",null,null,null,null,null,null,null,null,0]
[null,null,null,null,null,null,"ايجى فروست",null,null,null,null,null,null,null,null,0]
[null,null,null,null,null,null,"ايجى فروست",null,null,null,null,null,null,null,null,0]
[null,null,null,null,null,null,"ايجى فروست",null,null,null,null,null,null,null,null,0]
[null,null,null,null,null,null,"ايجى فروست",null,null,null,null,null,null,null,null,0]
[null,null,null,null,null,null,"ايجى فروست",null,null,null,null,null,null,null,null,0]
[null,null,null,null,null,null,"ايجى فروست",null,null,null,null,null,null,null,null,0]
[null,null,null,null,null,null,"ايجى فروست",null,null,null,null,null,null,null,null,0]
[null,null,null,null,null,null,"ايجى فروست",null,null,null,null,null,null,null,null,0]
[null,null,null,null,null,null,"ايجى فروست",null,null,null,null,null,null,null,null,0]
[null,null,null,null,null,null,"ايجى فروست",null,null,null,null,null,null,null,null,0]
[null,null,null,null,null,null,"ايجى فروست",null,null,null,null,null,null,null,null,0]
[null,null,null,null,null,null,"ايجى فروست",null,null,null,null,null,null,null,null,0]
[null,null,null,null,null,null,"ايجى فروست",null,null,null,null,null,null,null,null,0]
[null,null,null,null,null,null,"ايجى فروست",null,null,null,null,null,null,null,null,0]
[null,null,null,null,null,null,"ايجى فروست",null,null,null,null,null,null,null,null,0]
[null,null,null,null,null,null,"ايجى فروست",null,null,null,null,null,null,null,null,0]
[null,null,null,null,null,null,"ايجى فروست",null,null,null,null,null,null,null,null,0]
[null,null,null,null,null,null,"ايجى فروست",null,null,null,null,null,null,null,null,0]
[null,null,null,null,null,null,"ايجى فروست",null,null,null,null,null,null,null,null,0]
[null,null,null,null,null,null,"ايجى فروست",null,null,null,null,null,null,null,null,0]
[null,null,null,null,null,null,"ايجى فروست",null,null,null,null,null,null,null,null,0]
[null,null,null,null,null,null,"ايجى فروست",null,null,null,null,null,null,null,null,0]
[null,null,null,null,null,null,"ايجى فروست",null,null,null,null,null,null,null,null,0]
[null,null,null,null,null,null,"ايجى فروست",null,null,null,null,null,null,null,null,0]
[null,null,null,null,null,null,"ايجى فروست",null,null,null,null,null,null,null,null,0]
[null,null,null,null,null,null,"ايجى فروست",null,null,null,null,null,null,null,null,0]
[null,null,null,null,null,null,"ايجى فروست",null,null,null,null,null,null,null,null,0]
[null,null,null,null,null,null,"ايجى فروست",null,null,null,null,null,null,null,null,0]
[null,null,null,null,null,null,"ايجى فروست",null,null,null,null,null,null,null,null,0]
[null,null,null,null,null,null,"ايجى فروست",null,null,null,null,null,null,null,null,0]
[null,null,null,null,null,null,"ايجى فروست",null,null,null,null,null,null,null,null,0]
[null,null,null,null,null,null,"ايجى فروست",null,null,null,null,null,null,null,null,0]
[null,null,null,null,null,null,"ايجى فروست",null,null,null,null,null,null,null,null,0]
[null,null,null,null,null,null,"ايجى فروست",null,null,null,null,null,null,null,null,0]
[null,null,null,null,null,null,"ايجى فروست",null,null,null,null,null,null,null,null,0]
[null,null,null,null,null,null,"ايجى فروست",null,null,null,null,null,null,null,null,0]
[null,null,null,null,null,null,"ايجى فروست",null,null,null,null,null,null,null,null,0]
[null,null,null,null,null,null,"ايجى فروست",null,null,null,null,null,null,null,null,0]
[null,null,null,null,null,null,"ايجى فروست",null,null,null,null,null,null,null,null,0]
[null,null,null,null,null,null,"ايجى فروست",null,null,null,null,null,null,null,null,0]
[null,null,null,null,null,null,"ايجى فروست",null,null,null,null,null,null,null,null,0]
[null,null,null,null,null,null,"ايجى فروست",null,null,null,null,null,null,null,null,0]
[null,null,null,null,null,null,"ايجى فروست",null,null,null,null,null,null,null,null,0]
[null,null,null,null,null,null,"ايجى فروست",null,null,null,null,null,null,null,null,0]
[null,null,null,null,null,null,"ايجى فروست",null,null,null,null,null,null,null,null,0]
[null,null,null,null,null,null,"ايجى فروست",null,null,null,null,null,null,null,null,0]
[null,null,null,null,null,null,"ايجى فروست",null,null,null,null,null,null,null,null,0]
[null,null,null,null,null,null,"ايجى فروست",null,null,null,null,null,null,null,null,0]
[null,null,null,null,null,null,"ايجى فروست",null,null,null,null,null,null,null,null,0]
[null,null,null,null,null,null,"ايجى فروست",null,null,null,null,null,null,null,null,0]
[null,null,null,null,null,null,"ايجى فروست",null,null,null,null,null,null,null,null,0]
[null,null,null,null,null,null,"ايجى فروست",null,null,null,null,null,null,null,null,0]
[null,null,null,null,null,null,"ايجى فروست",null,null,null,null,null,null,null,null,0]
[null,null,null,null,null,null,"ايجى فروست",null,null,null,null,null,null,null,null,0]
[null,null,null,null,null,null,"ايجى فروست",null,null,null,null,null,null,null,null,0]
[null,null,null,null,null,null,"ايجى فروست",null,null,null,null,null,null,null,null,0]
[null,null,null,null,null,null,"ايجى فروست",null,null,null,null,null,null,null,null,0]
[null,null,null,null,null,null,"ايجى فروست",null,null,null,null,null,null,null,null,0]
[null,null,null,null,null,null,"ايجى فروست",null,null,null,null,null,null,null,null,0]
[null,null,null,null,null,null,"ايجى فروست",null,null,null,null,null,null,null,null,0]
[null,null,null,null,null,null,"ايجى فروست",null,null,null,null,null,null,null,null,0]
[null,null,null,null,null,null,"ايجى فروست",null,null,null,null,null,null,null,null,0]
[null,null,null,null,null,null,{"$f":"+G776","v":"ايجى فروست"},null,null,null,null,null,null,null,null,{"$f":"+N777*O777","v":0}]
[null,null,null,null,null,null,"ايجى فروست",null,null,null,null,null,null,null,null,0]
[null,null,null,null,null,null,"ايجى فروست",null,null,null,null,null,null,null,null,0]
[null,null,null,null,null,null,"ايجى فروست",null,null,null,null,null,null,null,null,0]
[null,null,null,null,null,null,"ايجى فروست",null,null,null,null,null,null,null,null,0]
[null,null,null,null,null,null,"ايجى فروست",null,null,null,null,null,null,null,null,0]
[null,null,null,null,null,null,"ايجى فروست",null,null,null,null,null,null,null,null,0]
[null,null,null,null,null,null,"ايجى فروست",null,null,null,null,null,null,null,null,0]
[null,null,null,null,null,null,"ايجى فروست",null,null,null,null,null,null,null,null,0]
[null,null,null,null,null,null,"ايجى فروست",null,null,null,null,null,null,null,null,0]
[null,null,null,null,null,null,"ايجى فروست",null,null,null,null,null,null,null,null,0]
[null,null,null,null,null,null,"ايجى فروست",null,null,null,null,null,null,null,null,0]
[null,null,null,null,null,null,"ايجى فروست",null,null,null,null,null,null,null,null,0]
[null,null,null,null,null,null,"ايجى فروست",null,null,null,null,null,null,null,null,0]
[null,null,null,null,null,null,"ايجى فروست",null,null,null,null,null,null,null,null,0]
[null,null,null,null,null,null,"ايجى فروست",null,null,null,null,null,null,null,null,0]
[null,null,null,null,null,null,"ايجى فروست",null,null,null,null,null,null,null,null,0]
[null,null,null,null,null,null,"ايجى فروست",null,null,null,null,null,null,null,null,0]
[null,null,null,null,null,null,"ايجى فروست",null,null,null,null,null,null,null,null,0]
[null,null,null,null,null,null,"ايجى فروست",null,null,null,null,null,null,null,null,0]
[null,null,null,null,null,null,"ايجى فروست",null,null,null,null,null,null,null,null,0]
[null,null,null,null,null,null,"ايجى فروست",null,null,null,null,null,null,null,null,0]
[null,null,null,null,null,null,"ايجى فروست",null,null,null,null,null,null,null,null,0]
[null,null,null,null,null,null,"ايجى فروست",null,null,null,null,null,null,null,null,0]
[null,null,null,null,null,null,"ايجى فروست",null,null,null,null,null,null,null,null,0]
[null,null,null,null,null,null,"ايجى فروست",null,null,null,null,null,null,null,null,0]
[null,null,null,null,null,null,"ايجى فروست",null,null,null,null,null,null,null,null,0]
[null,null,null,null,null,null,"ايجى فروست",null,null,null,null,null,null,null,null,0]
[null,null,null,null,null,null,"ايجى فروست",null,null,null,null,null,null,null,null,0]
[null,null,null,null,null,null,"ايجى فروست",null,null,null,null,null,null,null,null,0]
[null,null,null,null,null,null,"ايجى فروست",null,null,null,null,null,null,null,null,0]
[null,null,null,null,null,null,"ايجى فروست",null,null,null,null,null,null,null,null,0]
[null,null,null,null,null,null,"ايجى فروست",null,null,null,null,null,null,null,null,0]
[null,null,null,null,null,null,"ايجى فروست",null,null,null,null,null,null,null,null,0]
[null,null,null,null,null,null,"ايجى فروست",null,null,null,null,null,null,null,null,0]
[null,null,null,null,null,null,"ايجى فروست",null,null,null,null,null,null,null,null,0]
[null,null,null,null,null,null,"ايجى فروست",null,null,null,null,null,null,null,null,0]
[null,null,null,null,null,null,"ايجى فروست",null,null,null,null,null,null,null,null,0]
[null,null,null,null,null,null,"ايجى فروست",null,null,null,null,null,null,null,null,0]
[null,null,null,null,null,null,"ايجى فروست",null,null,null,null,null,null,null,null,0]
[null,null,null,null,null,null,"ايجى فروست",null,null,null,null,null,null,null,null,0]
[null,null,null,null,null,null,"ايجى فروست",null,null,null,null,null,null,null,null,0]
[null,null,null,null,null,null,"ايجى فروست",null,null,null,null,null,null,null,null,0]
[null,null,null,null,null,null,"ايجى فروست",null,null,null,null,null,null,null,null,0]
[null,null,null,null,null,null,"ايجى فروست",null,null,null,null,null,null,null,null,0]
[null,null,null,null,null,null,"ايجى فروست",null,null,null,null,null,null,null,null,0]
[null,null,null,null,null,null,"ايجى فروست",null,null,null,null,null,null,null,null,0]
[null,null,null,null,null,null,"ايجى فروست",null,null,null,null,null,null,null,null,0]
[null,null,null,null,null,null,"ايجى فروست",null,null,null,null,null,null,null,null,0]
[null,null,null,null,null,null,"ايجى فروست",null,null,null,null,null,null,null,null,0]
[null,null,null,null,null,null,"ايجى فروست",null,null,null,null,null,null,null,null,0]
[null,null,null,null,null,null,"ايجى فروست",null,null,null,null,null,null,null,null,0]
[null,null,null,null,null,null,"ايجى فروست",null,null,null,null,null,null,null,null,0]
[null,null,null,null,null,null,"ايجى فروست",null,null,null,null,null,null,null,null,0]
[null,null,null,null,null,null,"ايجى فروست",null,null,null,null,null,null,null,null,0]
[null,null,null,null,null,null,"ايجى فروست",null,null,null,null,null,null,null,null,0]
[null,null,null,null,null,null,"ايجى فروست",null,null,null,null,null,null,null,null,0]
[null,null,null,null,null,null,"ايجى فروست",null,null,null,null,null,null,null,null,0]
[null,null,null,null,null,null,"ايجى فروست",null,null,null,null,null,null,null,null,0]
[null,null,null,null,null,null,"ايجى فروست",null,null,null,null,null,null,null,null,0]
[null,null,null,null,null,null,"ايجى فروست",null,null,null,null,null,null,null,null,0]
[null,null,null,null,null,null,"ايجى فروست",null,null,null,null,null,null,null,null,0]
[null,null,null,null,null,null,"ايجى فروست",null,null,null,null,null,null,null,null,0]
[null,null,null,null,null,null,"ايجى فروست",null,null,null,null,null,null,null,null,0]
[null,null,null,null,null,null,{"$f":"+G840","v":"ايجى فروست"},null,null,null,null,null,null,null,null,{"$f":"+N841*O841","v":0}]
[null,null,null,null,null,null,"ايجى فروست",null,null,null,null,null,null,null,null,0]
[null,null,null,null,null,null,"ايجى فروست",null,null,null,null,null,null,null,null,0]
[null,null,null,null,null,null,"ايجى فروست",null,null,null,null,null,null,null,null,0]
[null,null,null,null,null,null,"ايجى فروست",null,null,null,null,null,null,null,null,0]
[null,null,null,null,null,null,"ايجى فروست",null,null,null,null,null,null,null,null,0]
[null,null,null,null,null,null,"ايجى فروست",null,null,null,null,null,null,null,null,0]
[null,null,null,null,null,null,"ايجى فروست",null,null,null,null,null,null,null,null,0]
[null,null,null,null,null,null,"ايجى فروست",null,null,null,null,null,null,null,null,0]
[null,null,null,null,null,null,"ايجى فروست",null,null,null,null,null,null,null,null,0]
[null,null,null,null,null,null,"ايجى فروست",null,null,null,null,null,null,null,null,0]
[null,null,null,null,null,null,"ايجى فروست",null,null,null,null,null,null,null,null,0]
[null,null,null,null,null,null,"ايجى فروست",null,null,null,null,null,null,null,null,0]
[null,null,null,null,null,null,"ايجى فروست",null,null,null,null,null,null,null,null,0]
[null,null,null,null,null,null,"ايجى فروست",null,null,null,null,null,null,null,null,0]
[null,null,null,null,null,null,"ايجى فروست",null,null,null,null,null,null,null,null,0]
[null,null,null,null,null,null,"ايجى فروست",null,null,null,null,null,null,null,null,0]
[null,null,null,null,null,null,"ايجى فروست",null,null,null,null,null,null,null,null,0]
[null,null,null,null,null,null,"ايجى فروست",null,null,null,null,null,null,null,null,0]
[null,null,null,null,null,null,"ايجى فروست",null,null,null,null,null,null,null,null,0]
[null,null,null,null,null,null,"ايجى فروست",null,null,null,null,null,null,null,null,0]
[null,null,null,null,null,null,"ايجى فروست",null,null,null,null,null,null,null,null,0]
[null,null,null,null,null,null,"ايجى فروست",null,null,null,null,null,null,null,null,0]
[null,null,null,null,null,null,"ايجى فروست",null,null,null,null,null,null,null,null,0]
[null,null,null,null,null,null,"ايجى فروست",null,null,null,null,null,null,null,null,0]
[null,null,null,null,null,null,"ايجى فروست",null,null,null,null,null,null,null,null,0]
[null,null,null,null,null,null,"ايجى فروست",null,null,null,null,null,null,null,null,0]
[null,null,null,null,null,null,"ايجى فروست",null,null,null,null,null,null,null,null,0]
[null,null,null,null,null,null,"ايجى فروست",null,null,null,null,null,null,null,null,0]
[null,null,null,null,null,null,"ايجى فروست",null,null,null,null,null,null,null,null,0]
[null,null,null,null,null,null,"ايجى فروست",null,null,null,null,null,null,null,null,0]
[null,null,null,null,null,null,"ايجى فروست",null,null,null,null,null,null,null,null,0]
[null,null,null,null,null,null,"ايجى فروست",null,null,null,null,null,null,null,null,0]
[null,null,null,null,null,null,"ايجى فروست",null,null,null,null,null,null,null,null,0]
[null,null,null,null,null,null,"ايجى فروست",null,null,null,null,null,null,null,null,0]
[null,null,null,null,null,null,"ايجى فروست",null,null,null,null,null,null,null,null,0]
[null,null,null,null,null,null,"ايجى فروست",null,null,null,null,null,null,null,null,0]
[null,null,null,null,null,null,"ايجى فروست",null,null,null,null,null,null,null,null,0]
[null,null,null,null,null,null,"ايجى فروست",null,null,null,null,null,null,null,null,0]
[null,null,null,null,null,null,"ايجى فروست",null,null,null,null,null,null,null,null,0]
[null,null,null,null,null,null,"ايجى فروست",null,null,null,null,null,null,null,null,0]
[null,null,null,null,null,null,"ايجى فروست",null,null,null,null,null,null,null,null,0]
[null,null,null,null,null,null,"ايجى فروست",null,null,null,null,null,null,null,null,0]
[null,null,null,null,null,null,"ايجى فروست",null,null,null,null,null,null,null,null,0]
[null,null,null,null,null,null,"ايجى فروست",null,null,null,null,null,null,null,null,0]
[null,null,null,null,null,null,"ايجى فروست",null,null,null,null,null,null,null,null,0]
[null,null,null,null,null,null,"ايجى فروست",null,null,null,null,null,null,null,null,0]
[null,null,null,null,null,null,"ايجى فروست",null,null,null,null,null,null,null,null,0]
[null,null,null,null,null,null,"ايجى فروست",null,null,null,null,null,null,null,null,0]
[null,null,null,null,null,null,"ايجى فروست",null,null,null,null,null,null,null,null,0]
[null,null,null,null,null,null,"ايجى فروست",null,null,null,null,null,null,null,null,0]
[null,null,null,null,null,null,"ايجى فروست",null,null,null,null,null,null,null,null,0]
[null,null,null,null,null,null,"ايجى فروست",null,null,null,null,null,null,null,null,0]
[null,null,null,null,null,null,"ايجى فروست",null,null,null,null,null,null,null,null,0]
[null,null,null,null,null,null,"ايجى فروست",null,null,null,null,null,null,null,null,0]
[null,null,null,null,null,null,"ايجى فروست",null,null,null,null,null,null,null,null,0]
[null,null,null,null,null,null,"ايجى فروست",null,null,null,null,null,null,null,null,0]
[null,null,null,null,null,null,"ايجى فروست",null,null,null,null,null,null,null,null,0]
[null,null,null,null,null,null,"ايجى فروست",null,null,null,null,null,null,null,null,0]
[null,null,null,null,null,null,"ايجى فروست",null,null,null,null,null,null,null,null,0]
[null,null,null,null,null,null,"ايجى فروست",null,null,null,null,null,null,null,null,0]
[null,null,null,null,null,null,"ايجى فروست",null,null,null,null,null,null,null,null,0]
[null,null,null,null,null,null,"ايجى فروست",null,null,null,null,null,null,null,null,0]
[null,null,null,null,null,null,"ايجى فروست",null,null,null,null,null,null,null,null,0]
[null,null,null,null,null,null,{"$f":"+G904","v":"ايجى فروست"},null,null,null,null,null,null,null,null,{"$f":"+N905*O905","v":0}]
[null,null,null,null,null,null,"ايجى فروست",null,null,null,null,null,null,null,null,0]
[null,null,null,null,null,null,"ايجى فروست",null,null,null,null,null,null,null,null,0]
[null,null,null,null,null,null,"ايجى فروست",null,null,null,null,null,null,null,null,0]
[null,null,null,null,null,null,"ايجى فروست",null,null,null,null,null,null,null,null,0]
[null,null,null,null,null,null,"ايجى فروست",null,null,null,null,null,null,null,null,0]
[null,null,null,null,null,null,"ايجى فروست",null,null,null,null,null,null,null,null,0]
[null,null,null,null,null,null,"ايجى فروست",null,null,null,null,null,null,null,null,0]
[null,null,null,null,null,null,"ايجى فروست",null,null,null,null,null,null,null,null,0]
[null,null,null,null,null,null,"ايجى فروست",null,null,null,null,null,null,null,null,0]
[null,null,null,null,null,null,"ايجى فروست",null,null,null,null,null,null,null,null,0]
[null,null,null,null,null,null,"ايجى فروست",null,null,null,null,null,null,null,null,0]
[null,null,null,null,null,null,"ايجى فروست",null,null,null,null,null,null,null,null,0]
[null,null,null,null,null,null,"ايجى فروست",null,null,null,null,null,null,null,null,0]
[null,null,null,null,null,null,"ايجى فروست",null,null,null,null,null,null,null,null,0]
[null,null,null,null,null,null,"ايجى فروست",null,null,null,null,null,null,null,null,0]
[null,null,null,null,null,null,"ايجى فروست",null,null,null,null,null,null,null,null,0]
[null,null,null,null,null,null,"ايجى فروست",null,null,null,null,null,null,null,null,0]

{"sheet":"فستفال","index":3,"n_rows":70,"n_cols":12,"rows_kept":70,"cut":false,"hidden":false,"merged":[]}
[]
[]
[]
[]
[]
[]
[]
[]
[null,"التاريخ","العدد","الصنف","وزن قائم","الفارغ","صافى قبل الخصم","نسبة الخصم","الخصم","الصافى","السعر","القيمة"]
[1,"2025-01-05","172","فستفال",null,null,null,null,null,1356,45,61020]
[2,"2025-01-05","308","فستفال",null,null,null,null,null,745,45,33525]
[3,"2025-01-06","312","فستفال",null,null,null,null,null,1464,45,65880]
[4,"2025-01-06","330","فستفال",null,null,null,null,null,1358,45,61110]
[5,"2025-01-07","972","فستفال",null,null,null,null,null,4400,45,198000]
[6,"2025-01-08","942","فستفال",null,null,null,null,null,4105,45,184725]
[7,"2025-01-11","728","فستفال",null,null,null,null,null,3324,45,149580]
[8,"2025-01-12","252","فستفال",null,null,null,null,null,1158,45,52110]
[9,"2025-01-12","918","فستفال",null,null,null,null,null,3888,45,174960]
[10,"2025-01-13","308","فستفال",null,null,null,null,null,1279,45,57555]
[11,"2025-01-13","972","فستفال",null,null,null,null,null,3962,45,178290]
[12,"2025-01-14","270","فستفال",null,null,null,null,null,1219,45,54855]
[13,"2025-01-14","972","فستفال",null,null,null,null,null,4224,45,190080]
[14,"2025-01-15","158","فستفال",null,null,null,null,null,773,45,34785]
[15,"2025-01-15","918","فستفال",null,null,null,null,null,3756,45,169020]
[16,"2025-01-18","224","فستفال",null,null,null,null,null,983,45,44235]
[17,"2025-01-18","918","فستفال",null,null,null,null,null,3955,45,177975]
[18,"2025-01-19","352","فستفال",null,null,null,null,null,1597,45,71865]
[19,"2025-01-19","972","فستفال",null,null,null,null,null,4371,45,196695]
[20,"2025-01-20","242","فستفال",null,null,null,null,null,412.6,45,18567]
[21,"2025-01-20","972","فستفال",null,null,null,null,null,1044.5999999999999,45,47006.999999999993]
[22,"2025-01-21","396","فستفال",null,null,null,null,null,1705.6,45,76752]
[23,"2025-01-21","972","فستفال",null,null,null,null,null,4056.8,45,182556]
[24,"2025-01-22","300","فستفال",null,null,null,null,null,4086.2,45,183879]
[25,"2025-01-22","100","فستفال",null,null,null,null,null,965.3,45,43438.5]
[26,"2025-01-25","810","فستفال",null,null,null,null,null,3354.5,41,137534.5]
[27,"2025-01-25","756","فستفال",null,null,null,null,null,3225,41,132225]
[28,"2025-01-26","396","فستفال",null,null,null,null,null,1554,41,63714]
[29,"2025-01-26","1080","فستفال",null,null,null,null,null,4398,41,180318]
[30,"2025-01-27","315","فستفال",null,null,null,null,null,1296.5,41,53156.5]
[31,"2025-01-27","918","فستفال",null,null,null,null,null,3770.4,41,154586.4]
[32,"2025-01-28","218","فستفال",null,null,null,null,null,806,41,33046]
[33,"2025-01-28","918","فستفال",null,null,null,null,null,3732,41,153012]
[34,"2025-01-29","150","فستفال",null,null,null,null,null,598.5,41,24538.5]
[35,"2025-01-29","918","فستفال",null,null,null,null,null,3604,41,147764]
[36,"2025-02-01","918","فستفال",null,null,null,null,null,3731.5,39,145528.5]
[37,"2025-02-01","810","فستفال",null,null,null,null,null,3256.5,39,127003.5]
[38,"2025-02-02","810","فستفال",null,null,null,null,null,3384,39,131976]
[39,"2025-02-02","756","فستفال",null,null,null,null,null,3258,39,127062]
[40,"2025-02-03","182","فستفال",null,null,null,null,null,511.6,39,19952.400000000001]
[41,"2025-02-03","864","فستفال",null,null,null,null,null,3685,39,143715]
[42,"2025-02-03","790","فستفال",null,null,null,null,null,3415,39,133185]
[43,"2025-02-04","232","فستفال",null,null,null,null,null,1113.0999999999999,39,43410.899999999994]
[44,"2025-02-04","810","فستفال",null,null,null,null,null,3448,39,134472]
[45,"2025-02-04","564","فستفال",null,null,null,null,null,2421.6999999999998,39,94446.299999999988]
[46,"2025-02-05","918","فستفال",null,null,null,null,null,3437.4,39,134058.6]
[47,"2025-02-05","918","فستفال",null,null,null,null,null,3653,39,142467]
[48,"2025-02-06","252","فستفال",null,null,null,null,null,1026.6500000000001,39,40039.350000000006]
[49,"2025-02-06","972","فستفال",null,null,null,null,null,4083.3,39,159248.70000000001]
[50,"2025-02-08",122,"فستفال",610,85.399999999999991,524.6,0.01,5.2460000000000004,519.35,38,19735.3]
[51,"2025-02-08",735,"فستفال",3770,514.5,3255.5,0.01,32.555,3223,38,122474]
[52,"2025-02-08",531,"فستفال",2630,371.7,2258.3000000000002,0.01,22.583000000000002,2235.7199999999998,38,84957.359999999986]
[53,"2025-02-09",220,"فستفال",1180,154,1026,0.03,30.779999999999998,995.22,38,37818.36]
[54,"2025-02-09",975,"فستفال",4800,682.5,4117.5,0.02,82.350000000000009,4035.15,38,153335.70000000001]
[55,"2025-02-09",972,"فستفال",5010,680.4,4329.6000000000004,0.02,86.592000000000013,4243.0080000000007,38,161234.30400000003]
[56,"2025-02-10",196,"فستفال",1358,137.19999999999999,1220.8,0.02,24.416,1196.384,38,45462.592000000004]
[57,"2025-02-10",342,"فستفال",2172,319.77000000000004,1852.23,0.02,37.044600000000003,1815.1854000000001,38,68977.045200000008]
[58,"2025-02-10",220,"فستفال",1740,154,1586,0.03,47.58,1538.42,38,58459.960000000006]
[59,"2025-02-10",1026,"فستفال",5030,718.19999999999993,4311.8,0.01,43.118000000000002,4268.6819999999998,38,162209.916]
[60,"2025-02-11",972,"فستفال",4600,680.4,3919.6,0.01,39.195999999999998,3880.404,30,116412.12]
[61,"2025-02-11",972,"فستفال",4540,680.4,3859.6,0.02,77.191999999999993,3782.4079999999999,30,113472.23999999999]

{"sheet":"صن سيشال","index":4,"n_rows":13,"n_cols":12,"rows_kept":13,"cut":false,"hidden":false,"merged":[]}
[]
[]
[]
[]
[]
[]
[]
[]
[null,"التاريخ","العدد","الصنف","وزن قائم","الفارغ","صافى قبل الخصم","نسبة الخصم","الخصم","الصافى","السعر","القيمة"]
[1,"2025-01-22","972","صن سيشال",null,null,null,null,null,707.85,30,21235.5]
[2,"2025-02-04","280","صن سيشال",null,null,null,null,null,1203.5,30,36105]
[3,"2025-02-05","267","صن سيشال",null,null,null,null,null,1288,30,38640]
[4,"2025-02-06","100","صن سيشال",null,null,null,null,null,407,30,12210]

{"sheet":"فرتونا","index":5,"n_rows":11,"n_cols":12,"rows_kept":11,"cut":false,"hidden":false,"merged":[]}
[]
[]
[]
[]
[]
[]
[]
[]
[null,"التاريخ","العدد","الصنف","وزن قائم","الفارغ","صافى قبل الخصم","نسبة الخصم","الخصم","الصافى","السعر","القيمة"]
[1,"2025-02-08",294,"فرتونا",670,205.79999999999998,464.20000000000005,0.04,18.568000000000001,445.6,36,16041.6]
[2,"2025-02-08",495,"فرتونا",2570,346.5,2223.5,0.03,66.704999999999998,2156.8000000000002,36,77644.800000000003]